Workbook

Sheet COVER
B2: VALVOLA DI ALIMENTAZIONE DI UN MOTORE A SCOPPIO
B4: Autore: Hume
R5: Motore a scoppio. Viene evidenziato il flusso
R6: di alimentazione miscela che lambisce la relativa valvola
R7: (immagine da Wikipedia Inglese)
J8: x
L11: camma
H13: Ta
H14: miscela alimentazione
K15: materiale: Invar

Sheet valvola alim. dt=1s dx=0,005
AB1: DATI
B2: VALVOLA DI MOTORE A SCOPPIO | AA2: 2 | AB2: L | AC2: 0.1 | AD2: m | AE2: lunghezza valvola
B3: ELABORAZIONE CON FORMULE SHEET EXCEL | AA3: 3 | AB3: τ | AC3: 1024 | AD3: s | AE3: durata temporale integrazione
AA4: 4 | AB4: Nx | AC4: 21 | AD4: adim | AE4: numero punti reticolo x | AI4: D = K/(ρc) | AJ4: =AC15/AC14/AC16 -> 3.236245955e-06 | AK4: m^2/s | AL4: diffusività termica | AO4: TABELLA PER DIAGRAMMA VALVOLA
B5: Andamento della temperatura in funzione della ascissa x e del tempo t | AA5: 5 | AB5: Nt | AC5: 513 | AD5: adim | AE5: numero punti reticolo t | AI5: G = 4γa/(ρcd) | AJ5: =4*AC11/(AC14*AC16*AC10) -> 0.005327153835 | AK5: m^2/s | AL5: convettività laterale | AO5: x | AP5: =C7 -> 0 | AQ5: 0.005 | AR5: 0.01 | AS5: 0.015 | AT5: 0.02 | AU5: 0.025 | AV5: 0.03 | AW5: 0.035 | AX5: 0.04 | AY5: 0.045 | AZ5: 0.05 | BA5: 0.055 | BB5: 0.06 | BC5: 0.065 | BD5: 0.07 | BE5: 0.075 | BF5: 0.08 | BG5: 0.085 | BH5: 0.09 | BI5: 0.095 | BJ5: =W7 -> 0.1
AA6: 6 | AB6: T0 | AC6: 20 | AD6: °C | AE6: temperatura iniziale della valvola | AI6: B = G∆t | AJ6: =AJ15*AJ5 -> 0.005327153835 | AK6: m^2*°K/s | AL6: parametro | AO6: t=0s | AP6: =C11 -> 20 | AQ6: 20 | AR6: 20 | AS6: 20 | AT6: 20 | AU6: 20 | AV6: 20 | AW6: 20 | AX6: 20 | AY6: 20 | AZ6: 20 | BA6: 20 | BB6: 20 | BC6: 20 | BD6: 20 | BE6: 20 | BF6: 20 | BG6: 20 | BH6: 20 | BI6: =V11 -> 20 | BJ6: 20
B7: x (m) | C7: =C8*$AJ$14 -> 0 | D7: 0.005 | E7: 0.01 | F7: 0.015 | G7: 0.02 | H7: 0.025 | I7: 0.03 | J7: 0.035 | K7: 0.04 | L7: 0.045 | M7: 0.05 | N7: 0.055 | O7: 0.06 | P7: 0.065 | Q7: 0.07 | R7: 0.075 | S7: 0.08 | T7: 0.085 | U7: 0.09 | V7: 0.095 | W7: 0.1 | AA7: 7 | AB7: Ta | AC7: 20 | AD7: °C | AE7: temperatura miscela alimentazione | AI7: θc = γc*∆x/K | AJ7: =AC13*AJ14/AC15 -> 0.05555555556 | AK7: adimensionale | AL7: coefficiente termico lato carter | AO7: t = 4s | AP7: =C13 -> 71.39040835 | AQ7: 25.8863494 | AR7: 20 | AS7: 20 | AT7: 20 | AU7: 20 | AV7: 20 | AW7: 20 | AX7: 20 | AY7: 20 | AZ7: 20 | BA7: 20 | BB7: 20 | BC7: 20 | BD7: 20 | BE7: 20 | BF7: 20 | BG7: 20 | BH7: 20 | BI7: =V13 -> 20.40662282 | BJ7: 23.54311636
B8: i | C8: 0 | D8: 1 | E8: 2 | F8: 3 | G8: 4 | H8: 5 | I8: 6 | J8: 7 | K8: 8 | L8: 9 | M8: 10 | N8: 11 | O8: 12 | P8: 13 | Q8: 14 | R8: 15 | S8: 16 | T8: 17 | U8: 18 | V8: 19 | W8: 20 | AA8: 8 | AB8: Tm | AC8: 1300 | AD8: °C | AE8: temperatura media gas nel cilindro | AI8: θm = γm*∆x/K | AJ8: =AC12*AJ14/AC15 -> 0.03703703704 | AK8: adimensionale | AL8: coefficiente termico lato cilindro motore | AO8: t = 16s | AP8: =C19 -> 94.16609373 | AQ8: 49.50557868 | AR8: 28.56815029 | AS8: 21.7531267 | AT8: 20.24435478 | AU8: 20.02202143 | AV8: 20.00115582 | AW8: 20.00002683 | AX8: 20 | AY8: 20 | AZ8: 20 | BA8: 20 | BB8: 20 | BC8: 20.00000185 | BD8: 20.00007981 | BE8: 20.00151984 | BF8: 20.01685273 | BG8: 20.12079297 | BH8: 20.58953525 | BI8: =V19 -> 22.02598112 | BJ8: 25.07724527
AA9: 9 | AB9: Tc | AC9: 80 | AD9: °C | AE9: temperatura olio nel carter distribuzione | AO9: t = 64s | AP9: =C43 -> 137.0611951 | AQ9: 93.98938752 | AR9: 63.63446001 | AS9: 43.83536647 | AT9: 31.98762793 | AU9: 25.52446719 | AV9: 22.32431811 | AW9: 20.89032594 | AX9: 20.30993395 | AY9: 20.09828903 | AZ9: 20.02988231 | BA9: 20.0139466 | BB9: 20.02293855 | BC9: 20.06134934 | BD9: 20.1591066 | BE9: 20.37747736 | BF9: 20.81769872 | BG9: 21.62266455 | BH9: 22.96376585 | BI9: =V43 -> 25.01231539 | BJ9: 27.90640406
A10: t (s) | B10: j | AA10: 10 | AB10: d | AC10: 0.009 | AD10: m | AE10: diametro asta | AO10: t = 256s | AP10: =C139 -> 196.3661187 | AQ10: 155.4907897 | AR10: 122.7814355 | AS10: 96.88889715 | AT10: 76.65431942 | AU10: 61.0746567 | AV10: 49.28035795 | AW10: 40.52160336 | AX10: 34.15967351 | AY10: 29.66058239 | AZ10: 26.58889217 | BA10: 24.60049679 | BB10: 23.43396053 | BC10: 22.90061612 | BD10: 22.87401354 | BE10: 23.27947487 | BF10: 24.08450166 | BG10: 25.29066835 | BH10: 26.92748135 | BI10: =V139 -> 29.04853661 | BJ10: 31.73019258
A11: =B11*$AJ$15 -> 0 | B11: 0 | C11: =$AC$6 -> 20 | D11: =$AC$6 -> 20 | E11: 20 | F11: 20 | G11: 20 | H11: 20 | I11: 20 | J11: 20 | K11: 20 | L11: 20 | M11: 20 | N11: 20 | O11: 20 | P11: 20 | Q11: 20 | R11: 20 | S11: 20 | T11: 20 | U11: 20 | V11: 20 | W11: 20 | AA11: 11 | AB11: γa | AC11: 50 | AD11: W/(m^2*°K) | AE11: coefficiente scambio convettivo valvola-miscela alimentazione | AO11: t = 1024s | AP11: =C523 -> 232.9195775 | AQ11: 193.3980803 | AR11: 161.1514304 | AS11: 134.8562194 | AT11: 113.4325865 | AU11: 95.99980086 | AV11: 81.84007258 | AW11: 70.36909927 | AX11: 61.11213341 | AY11: 53.68458021 | AZ11: 47.77632242 | BA11: 43.13912114 | BB11: 39.57656815 | BC11: 36.93617009 | BD11: 35.10323313 | BE11: 33.99629101 | BF11: 33.56388369 | BG11: 33.78255002 | BH11: 34.65594867 | BI11: =V523 -> 36.21506899 | BJ11: 38.51953904
A12: 1 | B12: 1 | C12: =((1+$AJ$6)*$AJ$8*$AC$8+$AJ$16*(E11+C11)+(1-2*$AJ$16)*D11+$AJ$6*$AC$7)/(1+$AJ$6)/(1+$AJ$8) -> 65.71428571 | D12: =($AJ$16*(E11+C11)+(1-2*$AJ$16)*D11+$AJ$6*$AC$7)/(1+$AJ$6) -> 20 | E12: =($AJ$16*(F11+D11)+(1-2*$AJ$16)*E11+$AJ$6*$AC$7)/(1+$AJ$6) -> 20 | F12: 20 | G12: 20 | H12: 20 | I12: 20 | J12: 20 | K12: 20 | L12: 20 | M12: 20 | N12: 20 | O12: 20 | P12: 20 | Q12: 20 | R12: 20 | S12: 20 | T12: 20 | U12: 20 | V12: 20 | W12: =(V12+$AJ$7*$AC$9)/(1+$AJ$7) -> 23.15789474 | AA12: 12 | AB12: γm | AC12: 100 | AD12: W/(m^2*°K) | AE12: coefficiente scambio convettivo valvola cilindro motore
A13: 2 | B13: 2 | C13: =((1+$AJ$6)*$AJ$8*$AC$8+$AJ$16*(E12+C12)+(1-2*$AJ$16)*D12+$AJ$6*$AC$7)/(1+$AJ$6)/(1+$AJ$8) -> 71.39040835 | D13: =($AJ$16*(E12+C12)+(1-2*$AJ$16)*D12+$AJ$6*$AC$7)/(1+$AJ$6) -> 25.8863494 | E13: 20 | F13: 20 | G13: 20 | H13: 20 | I13: 20 | J13: 20 | K13: 20 | L13: 20 | M13: 20 | N13: 20 | O13: 20 | P13: 20 | Q13: 20 | R13: 20 | S13: 20 | T13: 20 | U13: 20 | V13: 20.40662282 | W13: =(V13+$AJ$7*$AC$9)/(1+$AJ$7) -> 23.54311636 | AA13: 13 | AB13: γc | AC13: 150 | AD13: W/(m^2*°K) | AE13: coefficiente scambio convettivo valvola olio carter distribuzione
A14: 3 | B14: 3 | C14: 76.27947114 | D14: 30.95648859 | E14: 20.75794926 | F14: 20 | G14: 20 | H14: 20 | I14: 20 | J14: 20 | K14: 20 | L14: 20 | M14: 20 | N14: 20 | O14: 20 | P14: 20 | Q14: 20 | R14: 20 | S14: 20 | T14: 20 | U14: 20.05235834 | V14: 20.75597694 | W14: 23.87408341 | AA14: 14 | AB14: ρ | AC14: 8100 | AD14: kg/m^3 | AE14: densità valvola | AI14: ∆x | AJ14: =AC2/(AC4-1) -> 0.005 | AK14: m
A15: 4 | B15: 4 | C15: 80.58471992 | D15: 35.42119103 | E15: 21.96954008 | F15: 20.0975965 | G15: 20 | H15: 20 | I15: 20 | J15: 20 | K15: 20 | L15: 20 | M15: 20 | N15: 20 | O15: 20 | P15: 20 | Q15: 20 | R15: 20 | S15: 20 | T15: 20.00674186 | U15: 20.1359397 | V15: 21.06286993 | W15: 24.16482414 | AA15: 15 | AB15: K | AC15: 13.5 | AD15: W/(m*°K) | AE15: conduttività valvola | AI15: ∆t | AJ15: 1 | AK15: s
A16: 5 | B16: 5 | C16: 84.44343371 | D16: 39.42282014 | E16: 23.45015183 | F16: 20.32555118 | G16: 20.01256691 | H16: 20 | I16: 20 | J16: 20 | K16: 20 | L16: 20 | M16: 20 | N16: 20 | O16: 20 | P16: 20 | Q16: 20 | R16: 20 | S16: 20.00086811 | T16: 20.02247405 | U16: 20.2379385 | V16: 21.33730242 | W16: 24.42481282 | AA16: 16 | AB16: c | AC16: 515 | AD16: W*s/(kg*°K) | AE16: calore specifico a p costante valvola | AI16: A = D∆t/∆x^2 | AJ16: =AJ4*AJ15/AJ14^2 -> 0.1294498382 | AK16: adim | AL16: =IF(AJ16<=0.5, "CONVERGE","DIVERGE") -> CONVERGE
A17: 6 | B17: 6 | C17: 87.95093278 | D17: 43.06022658 | E17: 25.08623695 | F17: 20.68586078 | G17: 20.05118322 | H17: 20.00161816 | I17: 20 | J17: 20 | K17: 20 | L17: 20 | M17: 20 | N17: 20 | O17: 20 | P17: 20 | Q17: 20 | R17: 20.00011178 | S17: 20.00353379 | T17: 20.04731693 | U17: 20.35049201 | V17: 21.58621763 | W17: 24.66062723
A18: 7 | B18: 7 | C18: 91.17522146 | D18: 46.40393337 | E18: 26.80707667 | F18: 21.16711247 | G18: 20.12625337 | H18: 20.00778342 | I18: 20.00020836 | J18: 20 | K18: 20 | L18: 20 | M18: 20 | N18: 20 | O18: 20 | P18: 20 | Q18: 20.00001439 | R18: 20.00053743 | S18: 20.00871212 | T18: 20.08046652 | U18: 20.46871362 | V18: 21.81456849 | W18: 24.87695962
A19: 8 | B19: 8 | C19: 94.16609373 | D19: 49.50557868 | E19: 28.56815029 | F19: 21.7531267 | G19: 20.24435478 | H19: 20.02202143 | I19: 20.00115582 | J19: 20.00002683 | K19: 20 | L19: 20 | M19: 20 | N19: 20 | O19: 20 | P19: 20.00000185 | Q19: 20.00007981 | R19: 20.00151984 | S19: 20.01685273 | T19: 20.12079297 | U19: 20.58953525 | V19: 22.02598112 | W19: 25.07724527
A20: 9 | B20: 9 | C20: 96.9609111 | D20: 52.40390781 | E20: 30.34120412 | F20: 22.42709064 | G20: 20.4087068 | H20: 20.04784651 | I20: 20.00369106 | J20: 20.00016861 | K20: 20.00000345 | L20: 20 | M20: 20 | N20: 20 | O20: 20.00000024 | P20: 20.00001164 | Q20: 20.00025477 | R20: 20.00330068 | S20: 20.02817285 | T20: 20.16712623 | U20: 20.71101663 | V20: 22.22317588 | W20: 25.26406136
A21: 10 | B21: 10 | C21: 99.58834638 | D21: 55.1286555 | E21: 32.10823441 | F21: 23.17338677 | G21: 20.61997028 | H21: 20.08837313 | I21: 20.00890357 | J21: 20.00060001 | K21: 20.00002426 | L21: 20.00000044 | M21: 20 | N21: 20.00000003 | O21: 20.00000168 | P21: 20.00004142 | Q21: 20.00061432 | R21: 20.00609363 | S21: 20.04271311 | T21: 20.2183819 | U21: 20.83192707 | V21: 22.40824018 | W21: 25.43938543
A22: 11 | B22: 11 | C22: 102.0708611 | D22: 57.70311521 | E22: 33.85778705 | F22: 23.97826915 | G22: 20.87702243 | H22: 20.14612255 | I22: 20.01802 | J22: 20.00159189 | K22: 20.0000952 | L22: 20.00000345 | M22: 20.00000006 | N22: 20.00000024 | O22: 20.00000657 | P22: 20.00010985 | Q22: 20.00124283 | R22: 20.01007107 | S22: 20.06039131 | T22: 20.27360738 | U22: 20.9514885 | V22: 22.58280894 | W22: 25.60476637
A23: 12 | B23: 12 | C23: 104.4263801 | D23: 60.14587561 | E23: 35.58264776 | F23: 24.82998518 | G23: 21.17759024 | H23: 20.22296679 | I23: 20.03230415 | J23: 20.00350608 | K23: 20.0002756 | L23: 20.00001481 | M23: 20.00000052 | N23: 20.00000103 | O23: 20.00001902 | P23: 20.00024186 | Q23: 20.00222712 | R23: 20.01536037 | S23: 20.0810464 | T23: 20.33198964 | U23: 21.06921519 | V23: 22.74818666 | W23: 25.76144
A24: 13 | B24: 13 | C24: 106.6694468 | D24: 62.4720189 | E24: 37.27837862 | F24: 25.71864955 | G24: 21.51872584 | H24: 20.32015587 | I24: 20.05297528 | J24: 20.00677969 | K24: 20.00065653 | L24: 20.00004647 | M24: 20.00000242 | N24: 20.00000328 | O24: 20.0000453 | P24: 20.00046751 | Q24: 20.00365078 | R24: 20.02204588 | S24: 20.10447138 | T24: 20.39284605 | U24: 21.18481237 | V24: 22.90543155 | W24: 25.91040884
A25: 14 | B25: 14 | C25: 108.8120372 | D25: 64.6939645 | E25: 38.94237726 | F25: 26.63602404 | G25: 21.89714422 | H25: 20.43838871 | I25: 20.08114946 | J25: 20.01190365 | K25: 20.00136294 | L25: 20.00011911 | M25: 20.00000819 | N25: 20.00000856 | O25: 20.00009401 | P25: 20.00082056 | Q25: 20.00559017 | R25: 20.03017386 | S25: 20.13043661 | T25: 20.45560881 | U25: 21.2981111 | V25: 23.05541484 | W25: 26.05249827
A26: 15 | B26: 15 | C26: 110.8641434 | D26: 66.82207468 | E26: 40.57326369 | F26: 27.57527758 | G26: 22.30945297 | H26: =($AJ$16*(I25+G25)+(1-2*$AJ$16)*H25+$AJ$6*$AC$7)/(1+$AJ$6) -> 20.57790124 | I26: 20.11780261 | J26: 20.01939967 | K26: 20.00255282 | L26: 20.00026435 | M26: 20.00002248 | N26: 20.00001947 | O26: 20.00017606 | P26: 20.00133681 | Q26: 20.00811188 | R26: 20.0397587 | S26: 20.15870565 | T26: 20.51980801 | U26: 21.4090259 | V26: 23.19886328 | W26: 26.18839679
A27: 16 | B27: 16 | C27: 112.8342008 | D27: 68.86509713 | E27: 42.17047529 | F27: 28.53075996 | G27: 22.75230208 | H27: 20.73855624 | I27: 20.16375173 | J27: 20.02979835 | K27: 20.00441389 | L27: 20.00052648 | M27: 20.00005312 | N27: 20.00003992 | O27: 20.00030443 | P27: 20.00205265 | Q27: 20.01127148 | R27: 20.05078913 | S27: 20.18904556 | T27: 20.5850558 | U27: 21.51752685 | V27: 23.33639029 | W27: 26.31868553
A28: 17 | B28: 17 | C28: 114.7294051 | D28: 70.83049415 | E28: 43.73399618 | F28: 29.49780222 | G28: 23.22247682 | H28: 20.91992637 | I28: 20.21964973 | J28: 20.04362021 | K28: 20.00715854 | L28: 20.0009633 | M28: 20.00011209 | N28: 20.00007547 | O28: 20.00049386 | P28: 20.00300372 | Q28: 20.01511315 | R28: 20.06323399 | S28: 20.2212332 | T28: 20.65103241 | U28: 21.62362092 | V28: 23.46851901 | W28: 26.44386012
A29: 18 | B29: 18 | C29: 116.5559523 | D29: 72.72469124 | E29: 45.26417431 | F29: 30.4725465 | G29: 23.71695112 | H29: 21.12136676 | I29: 20.28598992 | J29: 20.06136037 | K29: 20.01101783 | L29: 20.00164631 | M29: 20.00021638 | N29: 20.00013366 | O29: 20.00076055 | P29: 20.00422388 | Q29: 20.01967004 | R29: 20.07704729 | S29: 20.25505893 | T29: 20.7174743 | U29: 21.72733945 | V29: 23.59569983 | W29: 26.56434721
A30: 19 | B30: 19 | C30: 118.3192225 | D30: 74.55326777 | E30: 46.76159681 | F30: 31.45180407 | G30: 24.23291449 | H30: 21.3420759 | I30: 20.36311668 | J30: 20.0834771 | K30: 20.01623504 | L30: 20.00266018 | M30: 20.00038871 | N30: 20.00022432 | O30: 20.00112175 | P30: 20.00574445 | Q30: 20.02496502 | R30: 20.09217237 | S30: 20.29032832 | T30: 20.78416422 | U30: 21.8287296 | V30: 23.71832372 | W30: 26.68051721
A31: 20 | B31: 20 | C31: 120.0239227 | D31: 76.32110503 | E31: 48.22700433 | F31: 32.43293801 | G31: 24.76778129 | H31: 21.58114537 | I31: 20.45123967 | J31: 20.11038389 | K31: 20.02305941 | L31: 20.00410155 | M31: 20.00065796 | N31: 20.00035986 | O31: 20.00159549 | P31: 20.00759369 | Q31: 20.03101169 | R31: 20.10854541 | S31: 20.3268628 | T31: 20.85092307 | U31: 21.92784849 | V31: 23.83673267 | W31: 26.79269411
A32: 21 | B32: 21 | C32: 121.6741992 | D32: 78.03250284 | E32: 49.66123185 | F32: 33.41376684 | G32: 25.31918894 | H32: 21.83759959 | I32: 20.55044972 | J32: 20.14244465 | K32: 20.03174037 | L32: 20.00607749 | M32: 20.0010595 | N32: 20.00055544 | O32: 20.00220028 | P32: 20.00979649 | Q32: 20.03781552 | R32: 20.12609809 | S32: 20.36449942 | T32: 20.91760316 | U32: 22.02475921 | V32: 23.95122785 | W32: 26.90116323
A33: 22 | B33: 22 | C33: 123.2737269 | D33: 79.69127234 | E33: 51.06516764 | F33: 34.39248577 | G33: 25.88498932 | H33: 22.11042686 | I33: 20.66073504 | J33: 20.17997146 | K33: 20.04252244 | L33: 20.00870361 | M33: 20.00163512 | N33: 20.0008292 | O33: 20.00295494 | P33: 20.0123743 | Q33: 20.0453749 | R33: 20.14475978 | S33: 20.40309027 | T33: 20.98408278 | U33: 22.11952804 | V33: 24.06207615 | W33: 27.00617741
A34: 23 | B34: 23 | C34: 124.8257816 | D34: 81.30081056 | E34: 52.43972489 | F34: 35.36760212 | G34: 26.4632362 | H34: 22.39860326 | I34: 20.78199682 | J34: 20.22322432 | K34: 20.05564094 | L34: 20.01210196 | M34: 20.00243285 | N34: 20.0012023 | O34: 20.00387844 | P34: 20.01534515 | Q34: 20.05368236 | R34: 20.16445916 | S34: 20.44250154 | T34: 21.05026169 | U34: 22.21222252 | V34: 24.16951539 | W34: 27.10796195
A35: 24 | B35: 24 | C35: 126.3332982 | D35: 82.8641611 | E35: 53.78582196 | F35: 36.33788251 | G35: 27.05217085 | H35: 22.70111066 | I35: 20.9140639 | J35: 20.27241251 | K35: 20.07131855 | L35: 20.01639905 | M35: 20.00350654 | N35: 20.00169897 | O35: 20.00498979 | P35: 20.01872378 | Q35: 20.06272551 | R35: 20.18512547 | S35: 20.4826125 | T35: 21.11605747 | U35: 22.30291017 | V35: 24.27375861 | W35: 27.20671868
A36: 25 | B36: 25 | C36: 127.7989186 | D36: 84.38406375 | E36: 55.10436894 | F36: 37.30230951 | G36: 27.65020686 | H36: 23.01695003 | I36: 21.05670591 | J36: 20.3276969 | K36: 20.08976263 | L36: 20.02172371 | M36: 20.0049153 | N36: 20.00234645 | O36: 20.00630806 | P36: 20.02252196 | Q36: 20.07248799 | R36: 20.2066894 | S36: 20.52331443 | T36: 21.1814025 | U36: 22.39165757 | V36: 24.37499752 | W36: 27.30262923
A37: 26 | B37: 26 | C37: 129.2250315 | D37: 85.86299562 | E37: 56.39625852 | F37: 38.26004602 | G37: 28.25591511 | H37: 23.34515096 | I37: 21.20964513 | J37: 20.38919315 | K37: 20.11116337 | L37: 20.02820524 | M37: 20.00672279 | N37: 20.00317491 | O37: 20.00785228 | P37: 20.02674867 | Q37: 20.08295036 | R37: 20.22908374 | S37: 20.56450954 | T37: 21.24624151 | U37: 22.47852977 | V37: 24.47340542 | W37: 27.39585776
A38: 27 | B38: 27 | C38: 130.6138051 | D38: 87.30320527 | E38: 57.66235991 | F38: 39.21040588 | G38: 28.86800936 | H38: 23.68477832 | I38: 21.37256676 | J38: 20.45697524 | K38: 20.13569251 | L38: 20.03597163 | M38: 20.00899649 | N38: 20.0042172 | O38: 20.00964157 | P38: 20.03141051 | Q38: 20.09409077 | R38: 20.25224387 | S38: 20.60610997 | T38: 21.31052954 | U38: 22.56358995 | V38: 24.56913956 | W38: 27.48655327
A39: 28 | B39: 28 | C39: 131.9672149 | D39: 88.70674139 | E39: 58.90351507 | F39: 40.15282957 | G39: 29.48533267 | H39: 24.0349366 | I39: 21.54512787 | J39: 20.53107928 | K39: 20.16350265 | L39: 20.04514804 | M39: 20.01180685 | N39: 20.00550872 | O39: 20.01169507 | P39: 20.03651197 | Q39: 20.10588564 | R39: 20.27610802 | S39: 20.64803687 | T39: 21.37423027 | U39: 22.64689911 | V39: 24.6623432 | W39: 27.57485145
A40: 29 | B40: 29 | C40: 133.2870671 | D40: 90.07547702 | E40: 60.12053642 | F40: 41.08686406 | G40: 30.10684481 | H40: 24.39477252 | I40: 21.72696497 | J40: 20.61150737 | K40: 20.19472706 | L40: 20.05585547 | M40: 20.01522645 | N40: 20.00708708 | O40: 20.01403204 | P40: 20.0420558 | Q40: 20.11831023 | R40: 20.30061745 | S40: 20.69021945 | T40: 21.43731463 | U40: 22.72851602 | V40: 24.75314727 | W40: 27.66087636
A41: 30 | B41: 30 | C41: 134.5750183 | D41: 91.41113008 | E41: 61.3142057 | F41: 42.01214606 | G41: 30.73161075 | H41: 24.76347633 | I41: 21.91770053 | J41: 20.69823145 | K41: 20.22947982 | L41: 20.06820959 | M41: 20.01932926 | N41: 20.00899184 | O41: 20.01667187 | P41: 20.04804332 | Q41: 20.13133909 | R41: 20.32571659 | S41: 20.73259425 | T41: 21.49975964 | U41: 22.8084971 | V41: 24.84167181 | W41: 27.74474171
A42: 31 | B42: 31 | C42: 135.8325923 | D42: 92.71528094 | E42: 62.48527361 | F42: 42.92838804 | G42: 31.35879016 | H42: 25.14028207 | I42: 22.11694836 | J42: 20.79119688 | K42: 20.26785633 | L42: 20.08231991 | M42: 20.02418977 | N42: 20.01126419 | O42: 20.01963413 | P42: 20.05447472 | Q42: 20.14494645 | R42: 20.35135299 | S42: 20.77510434 | T42: 21.56154746 | U42: 22.88689645 | V42: 24.92802724 | W42: 27.82655212
A43: 32 | B43: 32 | C43: 137.0611951 | D43: 93.98938752 | E43: 63.63446001 | F43: 43.83536647 | G43: 31.98762793 | H43: 25.52446719 | I43: 22.32431811 | J43: 20.89032594 | K43: 20.30993395 | L43: 20.09828903 | M43: 20.02988231 | N43: 20.0139466 | O43: 20.02293855 | P43: 20.06134934 | Q43: 20.1591066 | R43: 20.37747736 | S43: 20.81769872 | T43: =($AJ$16*(U42+S42)+(1-2*$AJ$16)*T42+$AJ$6*$AC$7)/(1+$AJ$6) -> 21.62266455 | U43: 22.96376585 | V43: 25.01231539 | W43: 27.90640406
A44: 33 | B44: 33 | C44: 138.2621269 | D44: 95.23479824 | E44: 64.76245453 | F44: 44.73291206 | G44: 32.61744558 | H44: 25.91535154 | I44: 22.53941896 | J44: 20.99552105 | K44: 20.35577294 | L44: 20.11621212 | M44: 20.03648034 | N44: 20.01708248 | O44: 20.02660509 | P44: 20.06866594 | Q44: 20.17379417 | R44: 20.40404348 | S44: 20.86033171 | T44: 21.68310106 | U44: 23.03915486 | V44: 25.09463041 | W44: 27.98438671
A45: 34 | B45: 34 | C45: 139.4365933 | D45: 96.45276338 | E45: 65.86991735 | F45: 45.62090144 | G45: 33.24763359 | H45: 26.31229603 | I45: 22.76186268 | J45: 21.10666771 | K45: 20.4054174 | L45: 20.13617653 | M45: 20.04405586 | N45: 20.02071587 | O45: 20.03065386 | P45: 20.07642289 | Q45: 20.18898433 | R45: 20.43100814 | S45: 20.90296241 | T45: 21.74285022 | U45: 23.11311088 | V45: 25.17505958 | W45: 28.06058276
A46: 35 | B46: 35 | C46: 140.5857147 | D46: 97.64444483 | E46: 66.95748027 | F46: 46.49925017 | G46: 33.87764444 | H46: 26.71470109 | I46: 22.99126605 | J46: 21.22363719 | K46: 20.45889634 | L46: 20.15826162 | M46: 20.05267888 | N46: 20.0248911 | O46: 20.03510517 | P46: 20.08461838 | Q46: 20.20465299 | R46: 20.458331 | S46: 20.94555424 | T46: 21.80190786 | U46: 23.18567918 | V46: 25.25368398 | W46: 28.13506904
A47: 36 | B47: 36 | C47: 141.7105346 | D47: 98.81092474 | E47: 68.02574774 | F47: 47.36790687 | G47: 34.50698645 | H47: 27.12200486 | I47: 23.22725277 | J47: 21.34628899 | K47: 20.5162248 | L47: 20.18253866 | M47: 20.06241692 | N47: 20.02965247 | O47: 20.03997946 | P47: 20.0932506 | Q47: 20.22077699 | R47: 20.48597453 | S47: 20.98807448 | T47: 21.86027204 | U47: 23.25690307 | V47: 25.33057911 | W47: 28.20791705
A48: 37 | B48: 37 | C48: 142.8120269 | D48: 99.95321305 | E48: 69.0752981 | F48: 48.2268482 | G48: 35.13521821 | H48: 27.53368143 | I48: 23.46945502 | J48: 21.47447303 | K48: 20.57740493 | L48: 20.20907078 | M48: 20.07333464 | N48: 20.03504397 | O48: 20.04529727 | P48: 20.10231787 | Q48: 20.23733419 | R48: 20.51390386 | S48: 21.03049396 | T48: 21.91794269 | U48: 23.32682393 | V48: 25.4058154 | W48: 28.27919354
A49: 38 | B49: 38 | C49: 143.8911022 | D49: 101.0722541 | E49: 70.10668471 | F49: 49.07607456 | G49: 35.76194359 | H49: 27.94923887 | I49: 23.7175146 | J49: 21.60803157 | K49: 20.64242715 | L49: 20.23791316 | M49: 20.08549351 | N49: 20.04110898 | O49: 20.05107918 | P49: 20.11181873 | Q49: 20.25430353 | R49: 20.54208669 | S49: 21.07278665 | T49: 21.97492133 | U49: 23.39548134 | V49: 25.47945871 | W49: 28.34896088
A50: 39 | B50: 39 | C50: 144.9486135 | D50: 102.1689326 | E50: 71.12043715 | F50: 49.9156065 | G50: 36.38680728 | H50: 28.36821742 | I50: 23.97108381 | J50: 21.74680099 | K50: 20.71127116 | L50: 20.26911312 | M50: 20.09895151 | N50: 20.04789007 | O50: 20.05734578 | P50: 20.12175205 | Q50: 20.27166518 | R50: 20.57049312 | S50: 21.11492941 | T50: 22.03121083 | U50: 23.46291314 | V50: 25.5515707 | W50: 28.4172775
A51: 40 | B51: 40 | C51: 145.9853615 | D51: 103.2440786 | E51: 72.11706235 | F51: 50.74548162 | G51: 37.00949082 | H51: 28.79018767 | I51: 24.22982606 | J51: 21.89061329 | K51: 20.78390705 | L51: 20.30271043 | M51: 20.11376297 | N51: 20.05542873 | O51: 20.06411755 | P51: 20.13211709 | Q51: 20.2894005 | R51: 20.59909561 | S51: 21.15690171 | T51: 22.0868152 | U51: 23.52915554 | V51: 25.62220922 | W51: 28.48419821
A52: 41 | B52: 41 | C52: 147.0020986 | D52: 104.2984726 | E52: 73.09704577 | F52: 51.56575188 | G52: 37.62970897 | H52: 29.21474868 | I52: 24.4934163 | J52: 22.03929741 | K52: 20.86029624 | L52: 20.33873753 | M52: 20.12997842 | N52: 20.06376517 | O52: 20.07141488 | P52: 20.14291355 | Q52: 20.30749211 | R52: 20.62786878 | S52: 21.19868537 | T52: 22.1417394 | U52: 23.59424319 | V52: 25.69142866 | W52: 28.54977452
A53: 42 | B53: 42 | C53: 147.9995332 | D53: 105.3328492 | E53: 74.06085244 | F53: 52.3764814 | G53: 38.24720655 | H53: 29.64152632 | I53: 24.76154126 | J53: 22.19268045 | K53: 20.94039244 | L53: 20.37721988 | M53: 20.14764443 | N53: 20.07293816 | O53: 20.0792579 | P53: 20.15414159 | Q53: 20.3259239 | R53: 20.65678937 | S53: 21.24026437 | T53: 22.19598921 | U53: 23.65820928 | V53: 25.75928017 | W53: 28.6140549
A54: 43 | B54: 43 | C54: 148.9783332 | D54: 106.3479011 | E54: =($AJ$16*(F53+D53)+(1-2*$AJ$16)*E53+$AJ$6*$AC$7)/(1+$AJ$6) -> 75.00892802 | F54: 53.17774443 | G54: 38.8617555 | H54: 30.0701716 | I54: 25.03389956 | J54: 22.35058864 | K54: 21.02414256 | L54: 20.41817628 | M54: 20.16680363 | N54: 20.08298489 | O54: 20.08766648 | P54: 20.16580185 | Q54: 20.34468102 | R54: 20.68583608 | S54: 21.28162464 | T54: 22.24957113 | U54: 23.72108562 | V54: 25.82581202 | W54: 28.67708507
A55: 44 | B55: 44 | C55: 149.9391293 | D55: =($AJ$16*(E54+C54)+(1-2*$AJ$16)*D54+$AJ$6*$AC$7)/(1+$AJ$6) -> 107.3442822 | E55: 75.94169979 | F55: 53.96962375 | G55: 39.47315236 | H55: 30.50035909 | I55: 25.31020173 | J55: 22.51284824 | K55: 21.11148749 | L55: 20.46161925 | M55: 20.18749465 | N55: 20.09394081 | O55: 20.09666013 | P55: 20.17789544 | Q55: 20.36374986 | R55: 20.71498949 | S55: 21.32275391 | T55: 22.30249219 | U55: 23.7829027 | V55: 25.89106973 | W55: 28.73890816
A56: 45 | B56: 45 | C56: 150.8825177 | D56: 108.3226109 | E56: 76.8595776 | F56: 54.7522092 | G56: 40.08121587 | H56: 30.93178539 | I56: 25.59017011 | J56: 22.67928631 | K56: 21.2023629 | L56: 20.50755538 | M56: 20.20975212 | N56: 20.10583953 | O56: 20.10625796 | P56: 20.19042395 | Q56: 20.38311802 | R56: 20.74423194 | S56: 21.36364154 | T56: 22.35475996 | U56: 23.84368975 | V56: 25.95509636 | W56: 28.79956497
A57: 46 | B57: 46 | C57: 151.8090629 | D57: 109.2834726 | E57: 77.76295476 | F57: 55.52559643 | G57: 40.68578493 | H57: 31.36416778 | I57: 25.87353866 | J57: 22.84973129 | K57: 21.29669996 | L57: 20.5559857 | M57: 20.23360678 | N57: 20.11871276 | O57: 20.11647857 | P57: 20.20338941 | Q57: 20.4027743 | R57: 20.77354747 | S57: 21.40427838 | T57: 22.40638239 | U57: 23.90347486 | V57: 26.01793266 | W57: 28.8590941
A58: 47 | B58: 47 | C58: 152.7192999 | D58: 110.2274221 | E58: 78.65220892 | F58: 56.28988587 | G58: 41.28671668 | H58: 31.79724284 | I58: 26.16005279 | J58: 23.02401362 | K58: 21.39442595 | L58: 20.60690606 | M58: 20.25908548 | N58: 20.13259023 | O58: 20.12734002 | P58: 20.21679426 | Q58: 20.42270865 | R58: 20.80292167 | S58: 21.44465666 | T58: 22.45736779 | U58: 23.962285 | V58: 26.07961727 | W58: 28.91753215
A59: 48 | B59: 48 | C59: 153.6137364 | D59: 111.1549859 | E59: 79.52770282 | F59: 57.04518176 | G59: 41.88388483 | H59: 32.23076518 | I59: 26.44946905 | J59: 23.20196616 | K59: 21.49546491 | L59: 20.6603075 | M59: 20.28621131 | N59: 20.14749963 | O59: 20.13885977 | P59: 20.23064134 | Q59: 20.44291212 | R59: 20.83234163 | S59: 21.48476986 | T59: 22.50772475 | U59: 24.0201461 | V59: 26.14018686 | W59: 28.97491386
A60: 49 | B60: 49 | C60: 154.4928549 | D60: 112.0666643 | E60: 80.38978511 | F60: 57.79159142 | G60: 42.4771781 | H60: 32.66450634 | I60: 26.74155488 | J60: 23.38342455 | K60: 21.59973818 | L60: 20.71617662 | M60: 20.31500373 | N60: 20.16346659 | O60: 20.15105462 | P60: 20.24493385 | Q60: 20.46337681 | R60: 20.86179586 | S60: 21.52461263 | T60: 22.55746211 | U60: 24.07708308 | V60: 26.19967625 | W60: 29.03127223
A61: 50 | B61: 50 | C61: 155.3571141 | D61: 112.9629331 | E61: 81.23879102 | F61: 58.5292245 | G61: 43.06649887 | H61: 33.09825359 | I61: 27.03608823 | J61: 23.56822757 | K61: 21.70716486 | L61: 20.7744959 | M61: 20.34547862 | N61: 20.18051469 | O61: 20.16394066 | P61: 20.25967527 | Q61: 20.48409583 | R61: 20.89127414 | S61: 21.56418068 | T61: 22.6065889 | U61: 24.13311997 | V61: 26.25811859 | W61: 29.08663866
A62: 51 | B62: 51 | C62: 156.2069507 | D62: 113.8442452 | E62: 82.07504307 | F62: 59.25819245 | G62: 43.65176189 | H62: 33.53180898 | I62: 27.3328573 | J62: 23.75621736 | K62: 21.81766231 | L62: 20.83524405 | M62: 20.37764849 | N62: 20.19866542 | O62: 20.17753325 | P62: 20.27486938 | Q62: 20.50506324 | R62: 20.92076755 | S62: 21.60347068 | T62: 22.65511432 | U62: 24.18827989 | V62: 26.31554544 | W62: 29.14104305
A63: 52 | B63: 52 | C63: 157.0427811 | D63: 114.7110322 | E63: 82.89885166 | F63: 59.97860797 | G63: 44.23289318 | H63: 33.96498831 | I63: 27.6316601 | J63: 23.94723963 | K63: 21.93114655 | L63: 20.89839637 | M63: 20.41152259 | N63: 20.2179382 | O63: 20.19184695 | P63: 20.29052014 | Q63: 20.526274 | R63: 20.95026828 | S63: 21.64248022 | T63: 22.70304771 | U63: 24.24258513 | V63: 26.37198691 | W63: 29.19451392
A64: 53 | B64: 53 | C64: 157.8650023 | D64: 115.5637061 | E64: 83.71051573 | F64: 60.69058457 | G64: 44.80982901 | H64: 34.39762028 | I64: 27.93230417 | J64: 24.14114383 | K64: 22.04753261 | L64: 20.963925 | M64: 20.44710704 | N64: 20.23835043 | O64: 20.20689552 | P64: 20.30663174 | Q64: 20.54772388 | R64: 20.97976963 | S64: 21.68120773 | T64: 22.75039849 | U64: 24.29605722 | V64: 26.42747173 | W64: 29.24707848
A65: 54 | B65: 54 | C65: 158.6739935 | D65: 116.4026599 | E65: 84.51032329 | F65: 61.39423623 | G65: 45.38251495 | H65: 34.82954562 | I65: 28.23460619 | J65: 24.33778325 | K65: 22.16673488 | L65: 21.03179928 | M65: 20.48440504 | N65: 20.25991749 | O65: 20.22269188 | P65: 20.32320846 | Q65: 20.56940946 | R65: 21.00926591 | S65: 21.7196524 | T65: 22.79717621 | U65: 24.34871693 | V65: 26.48202735 | W65: 29.29876275
A66: 55 | B66: 55 | C66: 159.470117 | D66: 117.2282694 | E66: 85.29855194 | F66: 62.08967705 | G66: 45.95090505 | H66: 35.2606163 | I66: 28.53839161 | J66: 24.53701511 | K66: 22.28866743 | L66: 21.10198596 | M66: 20.52341693 | N66: 20.28265278 | O66: 20.23924807 | P66: 20.3402547 | Q66: 20.59132803 | R66: 21.03875239 | S66: 21.75781412 | T66: 22.84339044 | U66: 24.40058433 | V66: 26.53568003 | W66: 29.34959161
A67: 56 | B67: 56 | C67: 160.2537193 | D67: 118.0408941 | E67: 86.07546942 | F67: 62.77702095 | G67: 46.51496105 | H67: 35.69069481 | I67: 28.84349431 | J67: 24.73870062 | K67: 22.41324423 | L67: 21.17444955 | M67: 20.56414046 | N67: 20.3065678 | O67: 20.25657528 | P67: 20.35777489 | Q67: 20.61347755 | R67: 21.0682252 | S67: 21.79569344 | T67: 22.88905084 | U67: 24.45167885 | V67: 26.58845492 | W67: 29.39958887
A68: 57 | B68: 57 | C68: 161.0251322 | D68: 118.8408779 | E68: 86.84133401 | F68: 63.45638148 | G68: 47.07465172 | H68: 36.11965345 | I68: 29.14975627 | J68: 24.942705 | K68: 22.54037942 | L68: 21.24915248 | M68: 20.60657083 | N68: 20.33167214 | O68: 20.27468379 | P68: 20.37577348 | Q68: 20.63585659 | R68: 21.09768132 | S68: 21.83329151 | T68: 22.93416709 | U68: 24.50201927 | V68: 26.64037613 | W68: 29.44877739
A69: 58 | B69: 58 | C69: 161.7846736 | D69: 119.6285504 | E69: 87.59639507 | F69: 64.12787158 | G69: 47.62995223 | H69: 36.54737374 | I69: 29.45702719 | J69: 25.14889748 | K69: 22.66998752 | L69: 21.3260554 | M69: 20.65070095 | N69: 20.35797362 | O69: 20.29358301 | P69: 20.3942549 | Q69: 20.65846427 | R69: 21.12711847 | S69: 21.87061003 | T69: 22.97874888 | U69: 24.55162381 | V69: 26.6914668 | W69: 29.49717907
A70: 59 | B70: 59 | C70: 162.5326481 | D70: 120.4042276 | E70: 88.34089337 | F70: 64.79160339 | G70: 48.18084354 | H70: 36.97374576 | I70: 29.76516418 | J70: 25.35715131 | K70: 22.80198362 | L70: 21.4051174 | M70: 20.69652149 | N70: 20.38547827 | O70: 20.31328142 | P70: 20.41322349 | Q70: 20.68130023 | R70: 21.15653508 | S70: 21.90765121 | T70: 23.02280594 | U70: 24.60051011 | V70: 26.74174914 | W70: 29.54481497
A71: 60 | B71: 60 | C71: 163.269348 | D71: 121.1682128 | E71: 89.07506154 | F71: 65.44768817 | G71: 48.72731191 | H71: 37.39866766 | I71: 30.07403143 | J71: 25.56734372 | K71: 22.93628352 | L71: 21.48629615 | M71: 20.74402111 | N71: 20.41419044 | O71: 20.33378664 | P71: 20.43268352 | Q71: 20.70436455 | R71: 21.18593023 | S71: 21.94441773 | T71: 23.06634798 | U71: 24.64869529 | V71: 26.79124451 | W71: 29.59170532
A72: 61 | B72: 61 | C72: 163.9950542 | D72: 121.9207969 | E72: 89.79912444 | F72: 66.09623609 | G72: 49.26934842 | H72: 37.82204507 | I72: 30.38349991 | J72: 25.77935588 | K72: 23.07280391 | L72: 21.56954817 | M72: 20.79318654 | N72: 20.44411285 | O72: 20.35510539 | P72: 20.45263913 | Q72: 20.72765774 | R72: 21.21530361 | S72: 21.98091271 | T72: 23.10938472 | U72: 24.69619598 | V72: 26.83997346 | W72: 29.6378696
A73: 62 | B73: 62 | C73: 164.7100362 | D73: 122.6622597 | E73: 90.51329949 | F73: 66.73735618 | G73: 49.80694854 | H73: 38.24379069 | I73: 30.69344704 | J73: 25.99307284 | K73: 23.21146246 | L73: 21.65482897 | M73: 20.84400276 | N73: 20.47524667 | O73: 20.37724348 | P73: 20.47309427 | Q73: 20.75118065 | R73: 21.24465543 | S73: 22.01713964 | T73: 23.15192587 | U73: 24.74302832 | V73: 26.88795582 | W73: 29.68332656
A74: 63 | B74: 63 | C74: 165.4145534 | D74: 123.3928702 | E74: 91.21779702 | F74: 67.37115623 | G74: 50.34011172 | H74: 38.66382378 | I74: 31.00375642 | J74: 26.2083835 | K74: 23.35217795 | L74: 21.7420932 | M74: 20.89645312 | N74: 20.50759157 | O74: 20.40020589 | P74: 20.49405274 | Q74: 20.77493445 | R74: 21.27398644 | S74: 22.05310239 | T74: 23.1939811 | U74: 24.78920804 | V74: 26.93521066 | W74: 29.72809431
A75: =B75*$AJ$15 -> 64 | B75: 64 | C75: 166.1088552 | D75: 124.1128869 | E75: 91.91282058 | F75: 67.9977427 | G75: 50.86884102 | H75: 39.08206976 | I75: 31.31431754 | J75: 26.42518047 | K75: 23.49487038 | L75: 21.83129485 | M75: 20.95051947 | N75: 20.54114581 | O75: 20.42399671 | P75: 20.51551813 | Q75: 20.79892058 | R75: 21.3032978 | S75: 22.08880513 | T75: 23.23556008 | U75: 24.8347504 | V75: 26.98175641 | W75: 29.77219028
A76: 65 | B76: 65 | C76: 166.7931818 | D76: 124.8225589 | E76: 92.59856726 | F76: 68.6172207 | G76: 51.39314284 | H76: 39.49845983 | I76: 31.62502551 | J76: 26.64336011 | K76: 23.63946099 | L76: 21.92238735 | M76: 21.00618226 | N76: 20.57590629 | O76: 20.44861921 | P76: 20.53749379 | Q76: 20.82314073 | R76: 21.33259113 | S76: 22.12425236 | T76: 23.27667243 | U76: 24.8796703 | V76: 27.02761088 | W76: 29.81563136
A77: 66 | B77: 66 | C77: =((1+$AJ$6)*$AJ$8*$AC$8+$AJ$16*(E76+C76)+(1-2*$AJ$16)*D76+$AJ$6*$AC$7)/(1+$AJ$6)/(1+$AJ$8) -> 167.4677645 | D77: 125.5221262 | E77: 93.27522792 | F77: 69.22969389 | G77: 51.91302654 | H77: 39.91293058 | I77: 31.93578079 | J77: 26.86282232 | K77: 23.78587242 | L77: 22.01532371 | M77: 21.0634207 | N77: 20.61186863 | O77: 20.47407583 | P77: 20.55998282 | Q77: 20.84759678 | R77: 21.3618684 | S77: 22.15944882 | T77: 23.31732774 | U77: 24.92398223 | V77: 27.07279127 | W77: =(V77+$AJ$7*$AC$9)/(1+$AJ$7) -> 29.85843384
A78: 67 | B78: 67 | C78: 168.1328262 | D78: 126.2118198 | E78: 93.94298752 | F78: 69.83526447 | G78: 52.42850421 | H78: 40.32542365 | I78: 32.24648895 | J78: 27.08347057 | K78: 23.93402867 | L78: 22.11005667 | M78: 21.12221285 | N78: 20.64902725 | O78: 20.50036819 | P78: 20.58298809 | Q78: 20.87229075 | R78: 21.3911319 | S78: 22.1943995 | T78: 23.35753555 | U78: 24.96770035 | V78: 27.11731424 | W78: 29.90061349
A79: 68 | B79: 68 | C79: 168.788582 | D79: 126.8918628 | E79: 94.60202532 | F79: 70.43403317 | G79: 52.93959043 | H79: 40.73588543 | I79: 32.55706046 | J79: 27.30521173 | K79: 24.08385521 | L79: 22.20653875 | M79: 21.18253572 | N79: 20.6873754 | O79: 20.52749716 | P79: 20.60651216 | Q79: 20.89722481 | R79: 21.42038425 | S79: 22.2291096 | T79: 23.39730538 | U79: 25.01083844 | V79: 27.16119592 | W79: 29.9421856
A80: 69 | B80: 69 | C80: 169.4352392 | D80: 127.5624702 | E80: 95.25251516 | F80: 71.02609918 | G80: 53.44630198 | H80: 41.14426674 | I80: 32.86741038 | J80: 27.52795604 | K80: 24.23527899 | L80: 22.30472243 | M80: 21.2443654 | N80: 20.72690528 | O80: 20.55546281 | P80: 20.63055731 | Q80: 20.92240124 | R80: 21.44962832 | S80: 22.26358453 | T80: 23.43664668 | U80: 25.05340998 | V80: 27.20445193 | W80: 29.98316499
A81: 70 | B81: 70 | C81: 170.0729981 | D81: 128.2238498 | E81: 95.89462564 | F81: 71.61156018 | G81: 53.94865769 | H81: 41.55052254 | I81: 33.17745825 | J81: 27.75161697 | K81: 24.3882285 | L81: 22.40456015 | M81: 21.30767712 | N81: 20.76760804 | O81: 20.58426452 | P81: 20.65512553 | Q81: 20.94782235 | R81: 21.47886721 | S81: 22.29782984 | T81: 23.47556883 | U81: 25.09542814 | V81: 27.24709745 | W81: 30.02356601
A82: 71 | B82: 71 | C82: 170.7020521 | D82: 128.8762022 | E82: 96.52852039 | F82: 72.19051232 | G82: 54.44667821 | H82: 41.95461172 | I82: 33.48712779 | J82: 27.97611118 | K82: 24.54263374 | L82: 22.5060045 | M82: 21.37244537 | N82: 20.80947391 | O82: 20.61390091 | P82: 20.68021851 | Q82: 20.97349053 | R82: 21.50810421 | S82: 22.33185125 | T82: 23.51408118 | U82: 25.13690577 | V82: 27.2891472 | W82: 30.06340261
A83: 72 | B83: 72 | C83: 171.3225882 | D83: 129.5197211 | E83: 97.15435822 | F83: 72.76305019 | G83: 54.94038587 | H83: 42.35649678 | I83: 33.79634674 | J83: 28.20135839 | K83: 24.69842627 | L83: 22.60900819 | M83: 21.43864397 | N83: 20.85249223 | O83: 20.64436995 | P83: 20.70583762 | Q83: 20.99940817 | R83: 21.53734282 | S83: 22.3656546 | T83: 23.55219301 | U83: 25.17785546 | V83: 27.33061549 | W83: 30.10268836
A84: 73 | B84: 73 | C84: 171.9347871 | D84: 130.154594 | E84: 97.77229336 | F84: 73.32926684 | G84: 55.42980446 | H84: 42.75614367 | I84: 34.10504669 | J84: 28.42728131 | K84: 24.85553923 | L84: 22.7135242 | M84: 21.50624618 | N84: 20.89665148 | O84: 20.67566893 | P84: 20.73198391 | Q84: 21.02557765 | R84: 21.56658664 | S84: 22.39924583 | T84: 23.58991352 | U84: 25.21828953 | V84: 27.37151624 | W84: 30.14143644
A85: 74 | B85: 74 | C85: 172.5388236 | D85: 130.7810023 | E85: 98.38247561 | F85: 73.88925382 | G85: 55.91495912 | H85: 43.15352154 | I85: 34.41316285 | J85: 28.65380553 | K85: 25.01390731 | L85: 22.81950582 | M85: 21.57522472 | N85: 20.9419394 | O85: 20.70779452 | P85: 20.75865812 | Q85: 21.05200134 | R85: 21.59583943 | S85: =($AJ$16*(T84+R84)+(1-2*$AJ$16)*S84+$AJ$6*$AC$7)/(1+$AJ$6) -> 22.43263097 | T85: 23.62725186 | U85: 25.25822002 | V85: 27.41186298 | W85: 30.17965966
A86: 75 | B86: 75 | C86: 173.1348669 | D86: =($AJ$16*(E85+C85)+(1-2*$AJ$16)*D85+$AJ$6*$AC$7)/(1+$AJ$6) -> 131.3991212 | E86: 98.98505053 | F86: 74.4431011 | G86: 56.3958762 | H86: 43.54860252 | I86: 34.72063391 | J86: 28.88085947 | K86: 25.17346678 | L86: 22.92690667 | M86: 21.64555192 | N86: 20.98834301 | O86: 20.74074277 | P86: 20.78586067 | Q86: 21.07868156 | R86: 21.62510502 | S86: 22.46581614 | T86: 23.6642171 | U86: 25.29765875 | V86: 27.45166889 | W86: 30.21737053
A87: 76 | B87: 76 | C87: 173.7230807 | D87: 132.0091207 | E87: 99.5801596 | F87: 74.99089717 | G87: 56.87258312 | H87: 43.94136159 | I87: 35.02740188 | J87: 29.10837423 | K87: 25.33415545 | L87: 23.03568081 | M87: 21.71719971 | N87: 21.03584866 | O87: 20.77450916 | P87: 20.81359165 | Q87: 21.10562056 | R87: 21.65438734 | S87: 22.4988075 | T87: 23.70081822 | U87: 25.33661727 | V87: 27.49094683 | W87: 30.25458121
A88: 77 | B88: 77 | C88: 174.3036237 | D88: 132.6111653 | E88: 100.1679404 | F88: 75.532729 | G88: 57.34510827 | H88: 44.33177637 | I88: 35.33341191 | J88: 29.33628357 | K88: 25.49591272 | L88: 23.14578274 | M88: 21.79013974 | N88: 21.0844421 | O88: 20.8090886 | P88: 20.84185086 | Q88: 21.13282053 | R88: 21.68369034 | S88: 22.53161126 | T88: 23.73706413 | U88: 25.37510694 | V88: 27.52970932 | W88: 30.29130357
A89: 78 | B89: 78 | C89: 174.8766496 | D89: 133.2054144 | E89: 100.7485266 | F89: 76.06868207 | G89: 57.81348089 | H89: 44.71982693 | I89: 35.63861215 | J89: 29.56452379 | K89: 25.6586795 | L89: 23.25716749 | M89: 21.86434342 | N89: 21.13410851 | O89: 20.84447548 | P89: 20.87063774 | Q89: 21.16028355 | R89: 21.71301805 | S89: 22.56423364 | T89: 23.77296367 | U89: 25.41313887 | V89: 27.56796859 | W89: 30.32754919
A90: 79 | B90: 79 | C90: 175.4423075 | D90: 133.7920226 | E90: 101.3220486 | F90: 76.59884039 | G90: 58.27773098 | H90: 45.1054957 | I90: 35.94295361 | J90: 29.79303364 | K90: 25.82239826 | L90: 23.36979059 | M90: 21.93978196 | N90: 21.18483257 | O90: 20.8806637 | P90: 20.89995147 | Q90: 21.18801162 | R90: 21.74237448 | S90: 22.59668091 | T90: 23.80852558 | U90: 25.45072397 | V90: 27.60573656 | W90: 30.36332937
A91: 80 | B91: 80 | C91: 176.0007418 | D91: 134.3711397 | E91: 101.8886328 | F91: 77.1232865 | G91: 58.73788921 | H91: 45.48876725 | I91: 36.24639004 | J91: 30.02175425 | K91: 25.98701296 | L91: 23.48360815 | M91: 22.01642646 | N91: 21.23659848 | O91: 20.91764666 | P91: 20.92979087 | Q91: 21.21600661 | R91: 21.77176367 | S91: 22.62895931 | T91: 23.8437585 | U91: 25.48787294 | V91: 27.6430249 | W91: 30.39865517
A92: 81 | B92: 81 | C92: 176.5520929 | D92: 134.9429111 | E92: 102.4484027 | F92: 77.64210153 | G92: 59.19398682 | H92: 45.86962822 | I92: 36.54887776 | J92: 30.25062906 | K92: 26.15246907 | L92: 23.59857689 | M92: 22.0942479 | N92: 21.28939005 | O92: 20.95541733 | P92: 20.96015449 | Q92: 21.24427027 | R92: 21.80118963 | S92: 22.66107507 | T92: 23.87867102 | U92: 25.52459629 | V92: 27.67984501 | W92: 30.43353738
A93: 82 | B93: 82 | C93: 177.0964966 | D93: 135.507478 | E93: 103.0014782 | F93: 78.15536516 | G93: 59.64605558 | H93: 46.24806715 | I93: 36.85037558 | J93: 30.47960373 | K93: 26.31871353 | L93: 23.71465414 | M93: 22.17321727 | N93: 21.34319067 | O93: 20.99396825 | P93: 20.99104058 | Q93: 21.27280422 | R93: 21.83065635 | S93: 22.69303443 | T93: 23.91327158 | U93: 25.56090434 | V93: 27.71620801 | W93: 30.46798654
A94: 83 | B94: 83 | C94: 177.6340853 | D94: 136.0649773 | E94: 103.5479764 | F94: 78.66315569 | G94: 60.09412769 | H94: 46.62407439 | I94: 37.15084466 | J94: 30.70862605 | K94: 26.48569473 | L94: 23.83179788 | M94: 22.25330551 | N94: 21.39798342 | O94: 21.03329155 | P94: 21.0224471 | Q94: 21.30160996 | R94: 21.86016779 | S94: 22.72484357 | T94: 23.94756857 | U94: 25.5968072 | V94: 27.75212483 | W94: 30.50201299
A95: 84 | B95: 84 | C95: 178.1649871 | D95: 136.6155422 | E95: 104.0880111 | F95: 79.16555004 | G95: 60.53823572 | H95: 46.99764197 | I95: 37.4502484 | J95: 30.93764591 | K95: 26.6533625 | L95: 23.94996673 | M95: 22.33448363 | N95: 21.45375107 | O95: 21.07337898 | P95: 21.05437169 | Q95: 21.33068881 | R95: 21.88972784 | S95: 22.75650864 | T95: 23.98157025 | U95: 25.63231484 | V95: 27.78760611 | W95: 30.53562684
A96: 85 | B96: 85 | C96: 178.6893268 | D96: 137.1593018 | E96: 104.6216934 | F96: 79.6626238 | G96: 60.97841257 | H96: 47.36876347 | I96: 37.74855235 | J96: 31.16661518 | K96: 26.82166808 | L96: 24.06912002 | M96: 22.41672271 | N96: 21.51047611 | O96: 21.11422197 | P96: 21.08681178 | Q96: 21.36004196 | R96: 21.91934034 | S96: 22.78803573 | T96: 24.0152848 | U96: 25.66743702 | V96: 27.82266232 | W96: 30.56883798
A97: 86 | B97: 86 | C97: 179.2072255 | D97: 137.696382 | E97: 105.1491315 | F97: 80.15445119 | G97: 61.41469138 | H97: 47.73743399 | I97: 38.04572407 | J97: 31.39548766 | K97: 26.99056407 | L97: 24.18921775 | M97: 22.49999395 | N97: 21.56814082 | O97: 21.15581157 | P97: 21.11976447 | Q97: 21.38967045 | R97: 21.94900906 | S97: 22.81943091 | T97: 24.04872029 | U97: 25.70218334 | V97: 27.85730368 | W97: 30.60165612
A98: 87 | B98: 87 | C98: 179.718801 | D98: 138.2269047 | E98: 105.6704309 | F98: 80.64110514 | G98: 61.84710553 | H98: 48.10365 | I98: 38.34173309 | J98: 31.62421904 | K98: 27.16000444 | L98: 24.31022062 | M98: 22.58426867 | N98: 21.62672728 | O98: 21.19813857 | P98: 21.15322663 | Q98: 21.41957516 | R98: 21.9787377 | S98: 22.85070013 | T98: 24.08188467 | U98: 25.73656324 | V98: 27.89154023 | W98: 30.63409075
A99: 88 | B99: 88 | C99: 180.2241679 | D99: 138.7509889 | E99: 106.1856946 | F99: 81.12265731 | G99: 62.27568855 | H99: 48.46740926 | I99: 38.63655078 | J99: 31.85276678 | K99: 27.3299445 | L99: 24.43209005 | M99: 22.66951835 | N99: 21.68621738 | O99: 21.24119343 | P99: 21.18719488 | Q99: 21.44975681 | R99: 22.00852985 | S99: 22.88184932 | T99: 24.11478581 | U99: 25.77058599 | V99: 27.9253818 | W99: 30.66615118
A100: 89 | B100: 89 | C100: 180.7234377 | D100: 139.2687502 | E100: 106.6950228 | F100: 81.59917807 | G100: 62.70047409 | H100: 48.82871077 | I100: 38.93015025 | J100: 32.08109008 | K100: 27.50034086 | L100: 24.55478816 | M100: 22.75571471 | N100: 21.74659288 | O100: 21.28496639 | P100: 21.22166558 | Q100: 21.48021595 | R100: 22.03838902 | S100: 22.9128843 | T100: 24.14743144 | U100: 25.8042607 | V100: 27.95883803 | W100: 30.69784655
A101: 90 | B101: 90 | C101: 181.2167188 | D101: 139.7803009 | E101: 107.1985136 | F101: 82.07073658 | G101: 63.1214959 | H101: 49.18755463 | I101: 39.22250633 | J101: 32.30914983 | K101: 27.67115138 | L101: 24.67827781 | M101: 22.84282963 | N101: 21.80783545 | O101: 21.32944742 | P101: 21.25663488 | Q101: 21.51095298 | R101: 22.06831863 | S101: 22.94381082 | T101: 24.1798292 | U101: 25.83759634 | V101: 27.99191838 | W101: 30.72918583
A102: 91 | B102: 91 | C102: 181.7041168 | D102: 140.2857507 | E102: 107.6962626 | F102: 82.53740076 | G102: 63.53878778 | H102: 49.54394206 | I102: 39.51359542 | J102: 32.53690852 | K102: 27.8423352 | L102: 24.80252256 | M102: 22.93083526 | N102: 21.86992664 | O102: 21.37462625 | P102: 21.29209868 | Q102: 21.54196814 | R102: 22.09832197 | S102: 22.97463454 | T102: 24.21198661 | U102: 25.87060169 | V102: 28.02463212 | W102: 30.76017779
A103: 92 | B103: 92 | C103: 182.1857345 | D103: =($AJ$16*(E102+C102)+(1-2*$AJ$16)*D102+$AJ$6*$AC$7)/(1+$AJ$6) -> 140.7852062 | E103: 108.188363 | F103: 82.99923734 | G103: 63.95238353 | H103: 49.89787524 | I103: 39.80339544 | J103: 32.7643302 | K103: 28.01385268 | L103: 24.92748672 | M103: 23.019704 | N103: 21.93284795 | O103: 21.42049244 | P103: 21.32805268 | Q103: 21.57326148 | R103: 22.12840225 | S103: 23.00536103 | T103: 24.24391107 | U103: 25.90328542 | V103: 28.05698835 | W103: 30.79083107
A104: 93 | B104: 93 | C104: 182.6616721 | D104: 141.2787711 | E104: 108.6749059 | F104: 83.4563119 | G104: 64.36231697 | H104: 50.24935731 | I104: 40.0918858 | J104: 32.99138043 | K104: 28.18566535 | L104: 25.0531353 | M104: 23.10940853 | N104: 21.99658086 | O104: 21.46703535 | P104: 21.36449237 | Q104: 21.60483293 | R104: 22.15856255 | S104: 23.03599574 | T104: 24.27560988 | U104: 25.93565602 | V104: 28.08899603 | W104: 30.82115413
A105: 94 | B105: 94 | C105: 183.1320272 | D105: 141.7665468 | E105: 109.1559805 | F105: 83.90868885 | G105: 64.76862184 | H105: 50.59839227 | I105: 40.37904725 | J105: 33.2180262 | K105: 28.35773594 | L105: 25.17943405 | M105: 23.19992181 | N105: 22.06110681 | O105: 21.51424414 | P105: 21.40141305 | Q105: 21.63668224 | R105: 22.18880582 | S105: 23.06654406 | T105: 24.3070902 | U105: 25.96772186 | V105: 28.12066391 | W105: 30.85115528
A106: 95 | B106: 95 | C106: 183.5968949 | D106: 142.2486317 | E106: 109.6316735 | F106: 84.35643147 | G106: 65.17133186 | H106: 50.94498494 | I106: 40.6648619 | J106: 33.44423592 | K106: 28.53002829 | L106: 25.30634944 | M106: 23.29121711 | N106: 22.12640724 | O106: 21.56210787 | P106: 21.43880981 | Q106: 21.66880899 | R106: 22.21913491 | S106: 23.09701123 | T106: 24.3383591 | U106: 25.99949115 | V106: 28.15200062 | W106: 30.88084269
A107: 96 | B107: 96 | C107: 184.0563678 | D107: 142.7251221 | E107: 110.1020699 | F107: 84.79960197 | G107: 65.57048063 | H107: 51.28914091 | I107: 40.94931308 | J107: 33.66997932 | K107: 28.70250737 | L107: 25.43384864 | M107: 23.38326802 | N107: 22.19246364 | O107: 21.61061542 | P107: 21.47667759 | Q107: 21.70121261 | R107: 22.24955254 | S107: 23.12740241 | T107: 24.3694235 | U107: 26.03097196 | V107: 28.1830146 | W107: 30.91022436
A108: 97 | B108: 97 | C108: 184.5105363 | D108: 143.1961117 | E108: 110.5672526 | F108: 85.23826145 | G108: 65.96610167 | H108: 51.6308665 | I108: 41.23238536 | J108: 33.89522744 | K108: 28.87513923 | L108: 25.56189956 | M108: 23.47604847 | N108: 22.2592575 | O108: 21.65975558 | P108: 21.51501115 | Q108: 21.73389239 | R108: 22.28006131 | S108: 23.15772264 | T108: 24.40029023 | U108: 26.06217223 | V108: 28.21371417 | W108: 30.93930816
A109: 98 | B109: 98 | C109: 184.9594886 | D109: 143.6616919 | E109: 111.0273029 | F109: 85.67246994 | G109: 66.35822835 | H109: 51.97016866 | I109: 41.51406443 | J109: 34.11995258 | K109: 29.04789099 | L109: 25.6904708 | M109: 23.56953272 | N109: 22.32677041 | O109: 21.709517 | P109: 21.55380507 | Q109: 21.76684746 | R109: 22.31066369 | S109: 23.18797685 | T109: 24.43096597 | U109: 26.09309975 | V109: 28.24410749 | W109: 30.96810183
A110: 99 | B110: 99 | C110: 185.4033108 | D110: 144.1219519 | E110: 111.4823 | F110: 86.10228647 | G110: 66.7468939 | H110: 52.30705501 | I110: 41.79433706 | J110: 34.34412823 | K110: 29.22073079 | L110: 25.81953167 | M110: 23.66369536 | N110: 22.39498399 | O110: 21.75988828 | P110: 21.59305382 | Q110: 21.8000768 | R110: 22.34136202 | S110: 23.21816986 | T110: 24.46145731 | U110: 26.12376218 | V110: 28.27420256 | W110: 30.99661295
A111: 100 | B111: 100 | C111: 185.8420866 | D111: 144.5769787 | E111: 111.9323214 | F111: 86.52776902 | G111: 67.13213142 | H111: 52.64153371 | I111: 42.07319109 | J111: 34.56772906 | K111: 29.39362779 | L111: 25.94905217 | M111: 23.75851137 | N111: 22.46387996 | O111: 21.8108579 | P111: 21.63275168 | Q111: 21.83357923 | R111: 22.37215851 | S111: 23.24830636 | T111: 24.49177069 | U111: 26.15416705 | V111: 28.30400726 | W111: 31.02484899
A112: 101 | B112: 101 | C112: 186.2758982 | D112: 145.0268574 | E112: 112.3774429 | F112: 86.94897457 | G112: 67.51397379 | H112: 52.97361348 | I112: 42.35061532 | J112: 34.79073083 | K112: 29.56655211 | L112: 26.07900299 | M112: 23.85395608 | N112: 22.53344016 | O112: 21.86241431 | P112: 21.67289284 | Q112: 21.86735346 | R112: 22.40305526 | S112: 23.27839093 | T112: 24.52191245 | U112: 26.18432174 | V112: 28.33352932 | W112: 31.05281725
A113: 102 | B113: 102 | C113: 186.7048253 | D113: 145.4716707 | E113: 112.8177389 | F113: 87.36595915 | G113: 67.89245374 | H113: 53.30330356 | I113: 42.62659951 | J113: 35.01311042 | K113: 29.73947485 | L113: 26.2093555 | M113: 23.95000518 | N113: 22.60364652 | O113: 21.9145459 | P113: 21.71347133 | Q113: 21.90139804 | R113: 22.43405423 | S113: 23.30842802 | T113: 24.55188879 | U113: 26.21423353 | V113: 28.36277634 | W113: 31.08052495
A114: 103 | B114: 103 | C114: 187.1289462 | D114: 145.9114998 | E114: 113.2532817 | F114: 87.77877782 | G114: 68.26760378 | H114: 53.63061362 | I114: 42.90113432 | J114: 35.23484571 | K114: 29.91236803 | L114: 26.34008176 | M114: 24.04663476 | N114: 22.6744811 | O114: 21.967241 | P114: 21.75448109 | Q114: 21.93571138 | R114: 22.46515725 | S114: 23.33842198 | T114: 24.5817058 | U114: 26.24390952 | V114: 28.39175576 | W114: 31.10797914
A115: 104 | B115: 104 | C115: 187.5483371 | D115: 146.3464237 | E115: 113.6841425 | F115: 88.18748468 | G115: 68.63945623 | H115: 53.95555381 | I115: 43.17421127 | J115: 35.45591562 | K115: 30.08520459 | L115: 26.47115446 | M115: 24.14382126 | N115: 22.74592608 | O115: 22.02048793 | P115: 21.79591594 | Q115: 21.97029178 | R115: 22.49636602 | S115: 23.36837703 | T115: 24.61136944 | U115: 26.27335673 | V115: 28.42047492 | W115: 31.13518677
A116: 105 | B116: 105 | C116: 187.9630725 | D116: 146.7765197 | E116: 114.1103908 | F116: 88.59213295 | G116: 69.00804317 | H116: 54.27813466 | I116: 43.44582269 | J116: 35.6763 | K116: 30.25795834 | L116: 26.60254697 | M116: 24.24154152 | N116: 22.81796381 | O116: 22.07427499 | P116: 21.83776959 | Q116: 22.00513741 | R116: 22.52768213 | S116: 23.39829726 | T116: 24.64088555 | U116: 26.30258202 | V116: 28.44894102 | W116: 31.16215465
A117: 106 | B117: 106 | C117: 188.3732253 | D117: 147.2018633 | E117: 114.5320945 | F117: 88.99277492 | G117: 69.37339647 | H117: 54.59836708 | I117: 43.71596169 | J117: 35.89597968 | K117: 30.43060395 | L117: 26.73423331 | M117: 24.33977275 | N117: 22.89057677 | O117: 22.12859047 | P117: 21.88003567 | Q117: 22.04024629 | R117: 22.55910703 | S117: 23.42818665 | T117: 24.67025984 | U117: 26.33159214 | V117: 28.47716112 | W117: 31.18888948
A118: 107 | B118: 107 | C118: 188.7788666 | D118: 147.6225283 | E118: 114.9493204 | F118: 89.389462 | G118: 69.73554776 | H118: 54.91626233 | I118: 43.98462213 | J118: 36.11493634 | K118: 30.60311694 | L118: 26.86618812 | M118: 24.43849256 | N118: 22.96374761 | O118: 22.18342267 | P118: 21.92270773 | Q118: 22.07561637 | R118: 22.59064206 | S118: 23.45804905 | T118: 24.69949792 | U118: 26.36039371 | V118: 28.50514216 | W118: 31.21539784
A119: 108 | B119: 108 | C119: 189.1800659 | D119: 148.0385869 | E119: 115.3621336 | F119: 89.78224476 | G119: 70.09452842 | H119: 55.23183198 | I119: 44.25179857 | J119: 36.33315254 | K119: 30.77547363 | L119: 26.99838667 | M119: 24.53767895 | N119: 23.03745916 | O119: 22.23875988 | P119: 21.96577923 | Q119: 22.11124543 | R119: 22.62228843 | S119: 23.48788819 | T119: 24.72860525 | U119: 26.38899321 | V119: 28.53289096 | W119: 31.24168617
A120: 109 | B120: 109 | C120: 189.5768914 | D120: =($AJ$16*(E119+C119)+(1-2*$AJ$16)*D119+$AJ$6*$AC$7)/(1+$AJ$6) -> 148.4501096 | E120: 115.770598 | F120: 90.1711729 | G120: 70.45036958 | H120: 55.54508793 | I120: 44.51748625 | J120: 36.5506117 | K120: 30.94765115 | L120: 27.13080486 | M120: 24.63731029 | N120: 23.1116944 | O120: 22.29459043 | P120: 22.00924356 | Q120: 22.14713119 | R120: 22.65404722 | S120: 23.51770769 | T120: 24.75758718 | U120: 26.41739701 | V120: 28.5604142 | W120: 31.26776082
A121: 110 | B121: 110 | C121: 189.9694095 | D121: 148.8571654 | E121: 116.1747762 | F121: 90.5562953 | G121: 70.80310214 | H121: 55.85604232 | I121: 44.78168106 | J121: 36.76729801 | K121: 31.11962738 | L121: 27.26341917 | M121: 24.73736536 | N121: 23.18643652 | O121: 22.35090268 | P121: 22.05309405 | Q121: 22.18327123 | R121: 22.68591943 | S121: 23.54751105 | T121: 24.78644894 | U121: 26.44561136 | V121: 28.58771846 | W121: 31.29362801
A122: 111 | B122: 111 | C122: 190.3576853 | D122: 149.2598218 | E122: 116.5747296 | F122: 90.93766002 | G122: 71.15275672 | H122: 56.16470756 | I122: 45.04437948 | J122: 36.98319645 | K122: 31.29138098 | L122: 27.39620671 | M122: 24.8378233 | N122: 23.26166887 | O122: 22.40768501 | P122: 22.09732397 | Q122: 22.21966306 | R122: 22.71790589 | S122: 23.57730163 | T122: 24.81519565 | U122: 26.47364238 | V122: 28.61481017 | W122: 31.31929385
A123: 112 | B123: 112 | C123: 190.7417825 | D123: 149.6581448 | E123: 116.9705181 | F123: 91.31531434 | G123: 71.49936368 | H123: 56.47109629 | I123: 45.3055786 | J123: 37.19829274 | K123: 31.46289131 | L123: 27.52914516 | M123: 24.93866366 | N123: 23.33737502 | O123: 22.46492586 | P123: 22.14192656 | Q123: 22.25630406 | R123: 22.75000737 | S123: 23.60708268 | T123: 24.84383229 | U123: 26.50149608 | V123: 28.64169568 | W123: 31.34476433
A124: 113 | B124: 113 | C124: 191.1217633 | D124: 150.052199 | E124: 117.3622007 | F124: 91.68930476 | G124: 71.84295312 | H124: 56.77522135 | I124: 45.56527606 | J124: 37.41257334 | K124: 31.63413845 | L124: 27.66221276 | M124: 25.03986637 | N124: 23.41353873 | O124: 22.52261371 | P124: 22.18689499 | Q124: 22.29319154 | R124: 22.78222448 | S124: 23.63685736 | T124: 24.87236373 | U124: 26.52917832 | V124: 28.66838119 | W124: 31.37004534
A125: 114 | B125: 114 | C125: 191.4976888 | D125: 150.4420476 | E125: 117.7498351 | F125: 92.05967699 | G125: 72.18355487 | H125: 57.0770958 | I125: 45.82347002 | J125: 37.62602538 | K125: 31.80510317 | L125: 27.79538835 | M125: 25.14141175 | N125: 23.49014395 | O125: 22.58073709 | P125: 22.2322224 | Q125: 22.33032272 | R125: 22.81455775 | S125: 23.66662868 | T125: 24.90079473 | U125: 26.55669488 | V125: 28.69487279 | W125: 31.39514264
A126: 115 | B126: 115 | C126: 191.8696185 | D126: 150.8277525 | E126: 118.1334777 | F126: 92.42647602 | G126: 72.52119847 | H126: 57.37673284 | I126: 46.08015915 | J126: 37.83863666 | K126: 31.97576692 | L126: 27.9286513 | M126: 25.24328048 | N126: 23.56717484 | O126: 22.63928462 | P126: 22.27790191 | Q126: 22.36769472 | R126: 22.8470076 | S126: 23.69639954 | T126: 24.92912991 | U126: 26.58405141 | V126: 28.72117645 | W126: 31.4200619
A127: 116 | B127: 116 | C127: 192.237611 | D127: 151.2093743 | E127: 118.5131842 | F127: 92.7897461 | G127: 72.85591322 | H127: 57.67414586 | I127: 46.33534261 | J127: 38.05039564 | K127: 32.14611179 | L127: 28.06198153 | M127: 25.34545364 | N127: 23.64461577 | O127: 22.69824496 | P127: 22.32392659 | Q127: 22.4053046 | R127: 22.87957434 | S127: 23.72617274 | T127: 24.95737379 | U127: 26.61125341 | V127: 28.74729804 | W127: 31.44480867
A128: 117 | B128: 117 | C128: 192.6017234 | D128: 151.5869724 | E128: 118.8890089 | F128: 93.14953076 | G128: 73.18772812 | H128: 57.96934838 | I128: 46.58902001 | J128: 38.26129139 | K128: 32.31612051 | L128: 28.19535949 | M128: 25.44791268 | N128: 23.72245134 | O128: 22.75760686 | P128: 22.37028952 | Q128: 22.44314934 | R128: 22.91225818 | S128: 23.75595096 | T128: 24.98553077 | U128: 26.63830631 | V128: 28.77324331 | W128: 31.4693884
A129: 118 | B129: 118 | C129: 192.9620117 | D129: 151.9606047 | E129: 119.261005 | F129: 93.50587282 | G129: 73.51667191 | H129: 58.26235406 | I129: 46.8411914 | J129: 38.47131357 | K129: 32.48577642 | L129: 28.32876618 | M129: 25.55063942 | N129: 23.80066633 | O129: 22.81735915 | P129: 22.41698373 | Q129: 22.48122584 | R129: 22.94505922 | S129: 23.78573677 | T129: 25.01360514 | U129: 26.66521541 | V129: 28.79901788 | W129: 31.49380641
A130: 119 | B130: 119 | C130: 193.3185309 | D130: 152.3303283 | E130: 119.629225 | F130: 93.85881443 | G130: 73.84277302 | H130: 58.55317668 | I130: 47.09185724 | J130: 38.68045244 | K130: 32.65506346 | L130: 28.46218307 | M130: 25.65361607 | N130: 23.87924577 | O130: 22.87749073 | P130: 22.46400228 | Q130: 22.51953094 | R130: 22.9779775 | S130: 23.81553263 | T130: 25.04160108 | U130: 26.69198587 | V130: 28.82462729 | W130: 31.51806796
A131: 120 | B131: 120 | C131: 193.6713347 | D131: 152.6961989 | E131: 119.9937201 | F131: 94.20839704 | G131: 74.16605964 | H131: 58.8418301 | I131: 47.34101838 | J131: 38.8886988 | K131: 32.82396616 | L131: 28.59559217 | M131: 25.75682517 | N131: 23.95817489 | O131: 22.93799062 | P131: 22.51133818 | Q131: 22.55806141 | R131: 23.01101291 | S131: 23.8453409 | T131: 25.06952264 | U131: 26.71862278 | V131: 28.85007694 | W131: 31.54217815
A132: 121 | B132: 121 | C132: 194.0204757 | D132: 153.0582711 | E132: 120.3545407 | F132: 94.55466146 | G132: 74.48655965 | H132: 59.12832829 | I132: 47.58867608 | J132: 39.09604398 | K132: 32.99246961 | L132: 28.72897597 | M132: 25.86024966 | N132: 24.03743913 | O132: 22.99884789 | P132: 22.55898448 | Q132: 22.59681396 | R132: 23.0441653 | S132: 23.87516381 | T132: 25.09737376 | U132: 26.74513108 | V132: 28.87537214 | W132: 31.56614203
A133: 122 | B133: 122 | C133: 194.3660057 | D133: 153.4165985 | E133: 120.7117362 | F133: 94.89764784 | G133: 74.80430068 | H133: 59.41268531 | I133: 47.83483191 | J133: 39.30247984 | K133: 33.16055944 | L133: 28.86231745 | M133: 25.96387282 | N133: 24.11702417 | O133: 23.06005175 | P133: 22.60693421 | Q133: 22.63578527 | R133: 23.0774344 | S133: 23.90500351 | T133: 25.12515829 | U133: 26.77151561 | V133: 28.90051808 | W133: 31.58996449
A134: 123 | B134: 123 | C134: 194.7079753 | D134: 153.7712336 | E134: 121.0653551 | F134: 95.23739568 | G134: 75.11931005 | H134: 59.69491526 | I134: 48.07948781 | J134: 39.50799872 | K134: 33.32822182 | L134: 28.99560005 | M134: 26.06767829 | N134: 24.1969159 | O134: 23.12159147 | P134: 22.65518041 | Q134: 22.67497192 | R134: 23.11081986 | S134: 23.93486205 | T134: 25.15287996 | U134: 26.79778112 | V134: 28.92551984 | W134: 31.61365037
A135: 124 | B135: 124 | C135: 195.0464339 | D135: 154.1222278 | E135: 121.4154449 | F135: 95.5739439 | G135: 75.43161483 | H135: 59.97503232 | I135: 48.32264605 | J135: 39.71259346 | K135: 33.49544345 | L135: 29.12880767 | M135: 26.17165007 | N135: 24.27710044 | O135: 23.18345644 | P135: 22.70371614 | Q135: 22.71437049 | R135: 23.14432126 | S135: 23.96474135 | T135: 25.18054238 | U135: 26.82393223 | V135: 28.9503824 | W135: 31.63720438
A136: 125 | B136: 125 | C136: 195.3814304 | D136: 154.4696315 | E136: 121.7620525 | F136: 95.90733076 | G136: 75.7412418 | H136: 60.25305071 | I136: 48.56430918 | J136: 39.91625734 | K136: 33.66221152 | L136: 29.2619247 | M136: 26.2757725 | N136: 24.35756413 | O136: 23.24563617 | P136: 22.75253448 | Q136: 22.75397748 | R136: 23.17793809 | S136: 23.99464327 | T136: 25.20814907 | U136: 26.84997345 | V136: 28.97511065 | W136: 31.66063114
A137: 126 | B137: 126 | C137: 195.7130123 | D137: =($AJ$16*(E136+C136)+(1-2*$AJ$16)*D136+$AJ$6*$AC$7)/(1+$AJ$6) -> 154.8134942 | E137: 122.1052235 | F137: 96.23759396 | G137: 76.04821744 | H137: 60.52898471 | I137: 48.80448007 | J137: 40.11898411 | K137: 33.8285137 | L137: 29.39493593 | M137: 26.38003025 | N137: 24.43829353 | O137: 23.30812027 | P137: 22.8016285 | Q137: 22.79378937 | R137: 23.21166975 | S137: 24.02456955 | T137: 25.23570344 | U137: 26.87590919 | V137: 28.99970934 | W137: 31.68393516
A138: 127 | B138: 127 | C138: 196.0412264 | D138: 155.1538644 | E138: 122.4450031 | F138: 96.56477058 | G138: 76.352568 | H138: 60.80284859 | I138: 49.04316186 | J138: 40.32076792 | K138: 33.99433816 | L138: 29.5278266 | M138: 26.48440836 | N138: 24.51927541 | O138: 23.37089844 | P138: 22.85099134 | Q138: 22.83380259 | R138: 23.24551559 | S138: 24.05452182 | T138: 25.2632088 | U138: 26.90174376 | V138: 29.02418314 | W138: 31.70712087
A139: =B139*$AJ$15 -> 128 | B139: 128 | C139: 196.3661187 | D139: 155.4907897 | E139: 122.7814355 | F139: 96.88889715 | G139: 76.65431942 | H139: 61.0746567 | I139: 49.28035795 | J139: 40.52160336 | K139: 34.15967351 | L139: 29.66058239 | M139: 26.58889217 | N139: 24.60049679 | O139: 23.43396053 | P139: 22.90061612 | Q139: 22.87401354 | R139: 23.27947487 | S139: 24.08450166 | T139: 25.29066835 | U139: 26.92748135 | V139: 29.04853661 | W139: 31.73019258
A140: 129 | B140: 129 | C140: 196.687734 | D140: 155.8243168 | E140: 123.114564 | F140: 97.21000964 | G140: 76.95349737 | H140: 61.34442335 | I140: 49.51607199 | J140: 40.72148539 | K140: 34.32450882 | L140: 29.79318938 | M140: 26.69346738 | N140: 24.68194488 | O140: 23.49729647 | P140: 22.95049602 | Q140: 22.91441859 | R140: 23.31354678 | S140: 24.11451053 | T140: 25.31808519 | U140: 26.95312606 | V140: 29.07277422 | W140: 31.75315452
A141: 130 | B141: 130 | C141: =((1+$AJ$6)*$AJ$8*$AC$8+$AJ$16*(E140+C140)+(1-2*$AJ$16)*D140+$AJ$6*$AC$7)/(1+$AJ$6)/(1+$AJ$8) -> 197.0061167 | D141: 156.1544914 | E141: 123.4444315 | F141: 97.52814343 | G141: 77.25012726 | H141: 61.61216289 | I141: 49.75030788 | J141: 40.92040939 | K141: 34.48883359 | L141: 29.92563406 | M141: 26.79812 | N141: 24.76360713 | O141: 23.56089635 | P141: 23.00062425 | Q141: 22.95501407 | R141: 23.34773045 | S141: 24.14454979 | T141: 25.34546232 | U141: 26.97868188 | V141: 29.09690032 | W141: =(V141+$AJ$7*$AC$9)/(1+$AJ$7) -> 31.77601083
A142: 131 | B142: 131 | C142: 197.32131 | D142: 156.4813585 | E142: 123.7710796 | F142: 97.8433334 | G142: 77.54423423 | H142: 61.87788968 | I142: 49.98306974 | J142: 41.11837106 | K142: 34.65263774 | L142: 30.05790331 | M142: 26.90283636 | N142: 24.8454712 | O142: 23.62475033 | P142: 23.05099403 | Q142: 22.9957963 | R142: 23.38202495 | S142: 24.17462074 | T142: 25.37280265 | U142: 27.00415271 | V142: 29.12091917 | W142: 31.79876553
A143: 132 | B143: 132 | C143: 197.6333565 | D143: 156.8049623 | E143: 124.0945497 | F143: 98.15561387 | G143: 77.83584313 | H143: 62.14161805 | I143: 50.21436189 | J143: 41.3153665 | K143: 34.8159116 | L143: 30.18998442 | M143: 27.0076031 | N143: 24.92752499 | O143: 23.68884872 | P143: 23.10159866 | Q143: 23.03676158 | R143: 23.41642926 | S143: 24.20472458 | T143: 25.40010898 | U143: 27.02954233 | V143: 29.14483493 | W143: 31.82142256
A144: 133 | B144: 133 | C144: 197.9422978 | D144: 157.1253459 | E144: 124.4148821 | F144: 98.46501866 | G144: 78.12497857 | H144: 62.40336233 | I144: 50.44418888 | J144: 41.51139213 | K144: 34.97864591 | L144: 30.32186503 | M144: 27.11240718 | N144: 25.00975657 | O144: 23.75318196 | P144: 23.15243145 | Q144: 23.07790617 | R144: 23.45094234 | S144: 24.23486243 | T144: 25.42738404 | U144: 27.05485444 | V144: 29.16865166 | W144: 31.84398578
A145: 134 | B145: 134 | C145: 198.248175 | D145: 157.4425518 | E145: 124.7321167 | F145: 98.77158106 | G145: 78.41166486 | H145: 62.66313685 | I145: 50.67255543 | J145: 41.70644472 | K145: 35.14083178 | L145: 30.45353319 | M145: 27.21723587 | N145: 25.09215429 | O145: 23.81774059 | P145: 23.20348576 | Q145: 23.11922633 | R145: 23.48556307 | S145: 24.26503534 | T145: 25.45463043 | U145: 27.08009262 | V145: 29.19237333 | W145: 31.86645895
A146: 135 | B146: 135 | C146: 198.5510283 | D146: 157.7566219 | E146: 125.0462923 | F146: 99.07533387 | G146: 78.69592609 | H146: 62.92095589 | I146: 50.89946646 | J146: 41.90052132 | K146: 35.30246071 | L146: 30.58497727 | M146: 27.32207674 | N146: 25.17470665 | O146: 23.8825153 | P146: 23.254755 | Q146: 23.1607183 | R146: 23.52029027 | S146: 24.29524424 | T146: 25.4818507 | U146: 27.10526039 | V146: 29.21600382 | W146: 31.88884572
A147: 136 | B147: 136 | C147: 198.8508971 | D147: 158.067597 | E147: 125.3574475 | F147: 99.37630938 | G147: 78.97778605 | H147: 63.17683373 | I147: 51.12492706 | J147: 42.09361932 | K147: 35.46352454 | L147: 30.71618602 | M147: 27.42691764 | N147: 25.25740241 | O147: 23.94749686 | P147: 23.30623262 | Q147: 23.20237831 | R147: 23.55512272 | S147: 24.32549004 | T147: 25.50904726 | U147: 27.13036113 | V147: 29.23954689 | W147: 31.91114968
A148: 137 | B148: 137 | C148: 199.1478203 | D148: 158.3755174 | E148: 125.6656199 | F148: 99.67453943 | G148: 79.25726829 | H148: 63.43078462 | I148: 51.34894246 | J148: 42.28573641 | K148: 35.6240155 | L148: 30.84714853 | M148: 27.53174673 | N148: 25.34023051 | O148: 24.01267623 | P148: 23.35791214 | Q148: 23.24420257 | R148: 23.59005914 | S148: 24.35577353 | T148: 25.53622248 | U148: 27.15539816 | V148: 29.26300622 | W148: 31.93337432
A149: 138 | B149: 138 | C149: 199.441836 | D149: 158.6804225 | E149: 125.9708467 | F149: 99.97005536 | G149: 79.5343961 | H149: 63.68282274 | I149: 51.57151808 | J149: 42.47687052 | K149: 35.78392614 | L149: 30.97785424 | M149: 27.63655245 | N149: 25.42318013 | O149: 24.07804444 | P149: 23.4097871 | Q149: 23.28618731 | R149: 23.62509821 | S149: 24.38609545 | T149: =($AJ$16*(U148+S148)+(1-2*$AJ$16)*T148+$AJ$6*$AC$7)/(1+$AJ$6) -> 25.56337861 | U149: 27.18037469 | V149: 29.28638541 | W149: 31.95552302
A150: 139 | B150: 139 | C150: 199.7329815 | D150: 158.9823512 | E150: 126.2731642 | F150: 100.2628881 | G150: 79.80919251 | H150: 63.93296227 | I150: 51.79265947 | J150: 42.66701991 | K150: 35.94324933 | L150: 31.10829291 | M150: 27.74132352 | N150: 25.50624063 | O150: 24.14359268 | P150: 23.46185112 | Q150: 23.32832872 | R150: 23.66023856 | S150: 24.41645645 | T150: 25.59051783 | U150: 27.20529385 | V150: 29.30968796 | W150: 31.97759912
A151: 140 | B151: 140 | C151: 200.0212937 | D151: 159.2813416 | E151: 126.5726085 | F151: 100.5530679 | G151: 80.0816803 | H151: 64.18121733 | I151: 52.01237231 | J151: 42.85618306 | K151: 36.1019783 | L151: 31.23845462 | M151: 27.84604893 | N151: 25.58940159 | O151: 24.20931225 | P151: 23.51409786 | Q151: 23.37062302 | R151: 23.69547879 | S151: 24.44685713 | T151: 25.61764222 | U151: 27.23015866 | V151: 29.33291726 | W151: 31.99960583
A152: 141 | B152: 141 | C152: 200.3068086 | D152: 159.5774312 | E152: 126.8692146 | F152: 100.840625 | G152: 80.351882 | H152: 64.427602 | I152: 52.23066241 | J152: 43.04435872 | K152: 36.26010657 | L152: 31.36832976 | M152: 27.95071797 | N152: 25.67265279 | O152: 24.27519458 | P152: 23.56652105 | Q152: 23.41306641 | R152: 23.73081743 | S152: 24.47729801 | T152: 25.6447538 | U152: 27.25497208 | V152: 29.35607665 | W152: 32.0215463
A153: 142 | B153: 142 | C153: 200.5895618 | D153: 159.8706566 | E153: 127.1630174 | F153: 101.1255887 | G153: 80.61981989 | H153: 64.6721303 | I153: 52.44753573 | J153: 43.23154588 | K153: 36.41762797 | L153: 31.49790906 | M153: 28.05532016 | N153: 25.7559842 | O153: =($AJ$16*(P152+N152)+(1-2*$AJ$16)*O152+$AJ$6*$AC$7)/(1+$AJ$6) -> 24.34123124 | P153: 23.61911446 | Q153: 23.4556551 | R153: 23.76625299 | S153: 24.50777955 | T153: 25.67185449 | U153: 27.27973695 | V153: 29.37916934 | W153: 32.04342358
A154: 143 | B154: 143 | C154: 200.869588 | D154: =($AJ$16*(E153+C153)+(1-2*$AJ$16)*D153+$AJ$6*$AC$7)/(1+$AJ$6) -> 160.1610542 | E154: 127.4540508 | F154: 101.4079883 | G154: 80.885516 | H154: 64.91481621 | I154: 52.66299831 | J154: 43.41774378 | K154: 36.57453662 | L154: 31.6271835 | M154: 28.15984532 | N154: 25.83938602 | O154: 24.40741391 | P154: 23.67187195 | Q154: 23.4983853 | R154: 23.80178395 | S154: 24.53830213 | T154: 25.69894614 | U154: 27.30445605 | V154: 29.40219848 | W154: 32.06524066
A155: 144 | B155: 144 | C155: 201.1469216 | D155: 160.4486594 | E155: 127.7423485 | F155: 101.6878524 | G155: 81.14899213 | H155: 65.15567365 | I155: 52.87705631 | J155: 43.60295187 | K155: 36.73082693 | L155: 31.75614441 | M155: 28.2642835 | N155: 25.92284862 | O155: 24.47373441 | P155: 23.7247874 | Q155: 23.54125322 | R155: 23.83740874 | S155: 24.5688661 | T155: 25.72603051 | U155: 27.32913206 | V155: 29.42516712 | W155: 32.08700043
A156: 145 | B156: 145 | C156: 201.4215962 | D156: 160.7335072 | E156: 128.0279434 | F156: 101.9652093 | G156: 81.41026983 | H156: 65.39471647 | I156: 53.08971601 | J156: 43.78716981 | K156: 36.88649359 | L156: 31.88478335 | M156: 28.36862501 | N156: 26.00636257 | O156: 24.54018468 | P156: 23.77785479 | Q156: 23.5842551 | R156: 23.87312575 | S156: 24.59947172 | T156: 25.75310931 | U156: 27.35376757 | V156: 29.44807825 | W156: 32.10870571
A157: 146 | B157: 146 | C157: 201.693645 | D157: 161.0156318 | E157: 128.3108679 | F157: 102.2400868 | G157: 81.66937041 | H157: 65.63195848 | I157: 53.30098377 | J157: 43.9703975 | K157: 37.04153157 | L157: 32.01309222 | M157: 28.47286041 | N157: 26.08991863 | O157: 24.60675678 | P157: 23.83106813 | Q157: 23.62738716 | R157: 23.90893337 | S157: 24.63011919 | T157: 25.78018413 | U157: 27.37836511 | V157: 29.47093474 | W157: 32.13035923
A158: 147 | B158: 147 | C158: 201.9631004 | D158: 161.2950671 | E158: 128.5911541 | F158: 102.5125125 | G158: 81.92631493 | H158: 65.86741341 | I158: 53.51086603 | J158: 44.15263501 | K158: 37.19593609 | L158: 32.14106313 | M158: 28.57698053 | N158: 26.17350777 | O158: 24.67344293 | P158: 23.88442152 | Q158: 23.67064564 | R158: 23.94482993 | S158: 24.66080868 | T158: 25.80725653 | U158: 27.40292711 | V158: 29.4937394 | W158: 32.15196364
A159: 148 | B159: 148 | C159: 202.2299945 | D159: 161.5718462 | E159: 128.8688334 | F159: 102.7825133 | G159: 82.18112425 | H159: 66.10109493 | I159: 53.71936933 | J159: 44.33388261 | K159: 37.34970262 | L159: 32.26868851 | M159: 28.68097639 | N159: 26.25712113 | O159: 24.74023542 | P159: 23.93790911 | Q159: 23.71402682 | R159: 23.98081375 | S159: 24.69154028 | T159: 25.83432798 | U159: 27.42745592 | V159: 29.51649495 | W159: 32.17352153
A160: 149 | B160: 149 | C160: 202.4943588 | D160: 161.8460017 | E160: 129.1439367 | F160: 103.050116 | G160: 82.43381898 | H160: 66.33301664 | I160: 53.92650028 | J160: 44.51414078 | K160: 37.50282688 | L160: 32.39596102 | M160: 28.78483928 | N160: 26.34075004 | O160: 24.80712672 | P160: 23.99152513 | Q160: 23.75752694 | R160: 24.0168831 | S160: 24.72231403 | T160: 25.86139987 | U160: 27.45195383 | V160: 29.53920404 | W160: 32.19503541
A161: 150 | B161: 150 | C161: 202.7562242 | D161: 162.1175658 | E161: 129.4164943 | F161: 103.3153469 | G161: 82.68441949 | H161: 66.56319208 | I161: 54.13226557 | J161: 44.69341015 | K161: 37.65530485 | L161: 32.52287358 | M161: 28.88856072 | N161: 26.42438602 | O161: 24.87410938 | P161: 24.04526385 | Q161: 23.80114231 | R161: 24.05303626 | S161: 24.75312994 | T161: 25.88847354 | U161: 27.47642302 | V161: 29.56186923 | W161: 32.21650769
A162: 151 | B162: 151 | C162: 203.015621 | D162: 162.38657 | E162: 129.6865364 | F162: 103.5782319 | G162: 82.93294594 | H162: 66.7916347 | I162: 54.33667196 | J162: 44.87169154 | K162: 37.80713271 | L162: 32.64941936 | M162: 28.99213244 | N162: 26.50802075 | O162: 24.94117612 | P162: 24.09911964 | Q162: 23.84486923 | R162: 24.08927147 | S162: 24.78398793 | T162: 25.91555025 | U162: 27.50086563 | V162: 29.58449301 | W162: 32.23794074
A163: 152 | B163: 152 | C163: 203.2725794 | D163: 162.6530453 | E163: 129.9540923 | F163: 103.8387966 | G163: 83.17941825 | H163: 67.01835789 | I163: 54.53972625 | J163: 45.04898592 | K163: 37.95830688 | L163: 32.77559178 | M163: 29.09554641 | N163: 26.59164611 | O163: 25.00831974 | P163: 24.15308691 | Q163: 23.88870401 | R163: 24.12558693 | S163: 24.81488791 | T163: 25.9426312 | U163: 27.52528369 | V163: 29.60707778 | W163: 32.25933684
A164: 153 | B164: 153 | C164: 203.5271286 | D164: 162.9170223 | E164: 130.2191911 | F164: 104.0970662 | G164: 83.42385614 | H164: 67.24337496 | I164: 54.74143533 | J164: 45.22529444 | K164: 38.10882401 | L164: 32.90138447 | M164: 29.1987948 | N164: 26.67525415 | O164: 25.07553318 | P164: 24.20716015 | Q164: 23.93264299 | R164: 24.16198086 | S164: 24.84582971 | T164: 25.96971752 | U164: 27.54967919 | V164: 29.62962588 | W164: 32.2806982
A165: 154 | B165: 154 | C165: 203.7792977 | D165: 163.1785309 | E165: 130.4818613 | F165: 104.3530656 | G165: 83.66627911 | H165: 67.46669916 | I165: 54.94180611 | J165: 45.40061839 | K165: 38.25868095 | L165: 33.02679132 | M165: 29.30187001 | N165: 26.75883709 | O165: 25.14280952 | P165: 24.26133391 | Q165: 23.97668255 | R165: 24.19845144 | S165: 24.87681315 | T165: 25.99681028 | U165: 27.57405402 | V165: 29.65213957 | W165: 32.30202696
A166: 155 | B166: 155 | C166: 204.0291151 | D166: 163.4376009 | E166: 130.7421312 | F166: 104.6068193 | G166: 83.90670641 | H166: 67.68834364 | I166: 55.1408456 | J166: 45.57495921 | K166: 38.40787475 | L166: 33.15180643 | M166: 29.40476465 | N166: 26.84238733 | O166: 25.21014192 | P166: 24.31560283 | Q166: 24.02081904 | R166: 24.23499683 | S166: 24.90783798 | T166: 26.02391048 | U166: 27.59841001 | V166: 29.67462103 | W166: 32.32332518
A167: 156 | B167: 156 | C167: 204.2766089 | D167: 163.6942611 | E167: 131.0000283 | F167: 104.8583514 | G167: 84.14515711 | H167: 67.90832149 | I167: 55.33856079 | J167: 45.74831848 | K167: 38.55640267 | L167: 33.27642412 | M167: 29.50747151 | N167: 26.92589744 | O167: 25.27752371 | P167: 24.3699616 | Q167: 24.0650489 | R167: 24.27161517 | S167: 24.9389039 | T167: 26.05101907 | U167: 27.62274892 | V167: 29.69707238 | W167: 32.34459488
A168: 157 | B168: 157 | C168: 204.5218067 | D168: 163.9485403 | E168: 131.25558 | F168: 105.1076859 | G168: 84.38165006 | H168: 68.1266457 | I168: 55.53495877 | J168: 45.92069791 | K168: 38.70426216 | L168: 33.40063892 | M168: 29.60998361 | N168: 27.00936013 | O168: 25.34494829 | P168: 24.42440498 | Q168: 24.10936853 | R168: 24.30830462 | S168: 24.9700106 | T168: 26.07813695 | U168: 27.64707245 | V168: 29.71949565 | W168: 32.36583799
A169: 158 | B169: 158 | C169: 204.7647356 | D169: 164.2004666 | E169: 131.5088132 | F169: 105.3548461 | G169: 84.6162039 | H169: 68.3433292 | I169: 55.73004664 | J169: 46.09209936 | K169: 38.85145085 | L169: 33.52444557 | M169: 29.71229415 | N169: 27.09276831 | O169: 25.41240921 | P169: 24.47892781 | Q169: 24.1537744 | R169: 24.34506329 | S169: 25.00115771 | T169: 26.10526493 | U169: 27.67138222 | V169: 29.74189283 | W169: 32.38705637
A170: 159 | B170: 159 | C170: 205.0054224 | D170: 164.4500677 | E170: 131.7597542 | F170: 105.5998555 | G170: 84.84883706 | H170: 68.55838482 | I170: 55.92383153 | J170: 46.26252479 | K170: 38.99796656 | L170: 33.64783902 | M170: 29.81439654 | N170: 27.17611502 | O170: 25.47990014 | P170: 24.53352498 | Q170: 24.19826298 | R170: 24.38188929 | S170: 25.03234482 | T170: 26.1324038 | U170: 27.69567978 | V170: 29.76426581 | W170: 32.40825182
A171: 160 | B171: 160 | C171: 205.2438933 | D171: 164.6973708 | E171: 132.0084292 | F171: 105.8427367 | G171: 85.07956776 | H171: 68.77182533 | I171: 56.11632062 | J171: 46.43197629 | K171: 39.1438073 | L171: 33.77081441 | M171: 29.91628436 | N171: 27.25939349 | O171: 25.54741484 | P171: 24.58819148 | Q171: 24.24283077 | R171: 24.41878073 | S171: 25.06357149 | T171: 26.15955428 | U171: 27.71996664 | V171: 29.78661644 | W171: 32.4294261
A172: 161 | B172: 161 | C172: 205.4801743 | D172: 164.9424029 | E172: 132.2548638 | F172: 106.0835124 | G172: 85.30841403 | H172: 68.9836634 | I172: 56.3075211 | J172: 46.60045608 | K172: 39.28897122 | L172: 33.89336707 | M172: 30.01795139 | N172: 27.34259708 | O172: 25.6149472 | P172: 24.64292234 | Q172: 24.28747432 | R172: 24.45573571 | S172: 25.09483724 | T172: 26.18671702 | U172: 27.74424421 | V172: 29.80894647 | W172: 32.45058087
A173: 162 | B173: 162 | C173: 205.7142907 | D173: 165.1851904 | E173: 132.4990833 | F173: 106.3222048 | G173: 85.5353937 | H173: 69.19391163 | I173: 56.4974402 | J173: 46.76796647 | K173: 39.43345665 | L173: 34.01549254 | M173: 30.11939158 | N173: 27.42571932 | O173: 25.68249123 | P173: 24.69771267 | Q173: 24.33219017 | R173: 24.49275231 | S173: 25.12614157 | T173: 26.21389264 | U173: 27.76851387 | V173: 29.83125762 | W173: 32.47171775
A174: 163 | B174: 163 | C174: 205.9462678 | D174: 165.4257592 | E174: 132.7411127 | F174: 106.5588359 | G174: 85.76052439 | H174: 69.40258251 | I174: 56.68608515 | J174: 46.93450988 | K174: 39.5772621 | L174: 34.13718651 | M174: 30.22059908 | N174: 27.50875387 | O174: 25.75004105 | P174: 24.75255766 | Q174: 24.37697493 | R174: 24.52982861 | S174: 25.15748392 | T174: 26.2410817 | U174: 27.79277693 | V174: 29.85355153 | W174: 32.49283829
A175: 164 | B175: 164 | C175: 206.1761302 | D175: 165.664135 | E175: 132.9809763 | F175: 106.7934274 | G175: 85.98382355 | H175: 69.60968847 | I175: 56.87346322 | J175: 47.10008885 | K175: 39.7203862 | L175: 34.25844488 | M175: 30.32156818 | N175: 27.59169458 | O175: 25.81759087 | P175: 24.80745256 | Q175: 24.42182519 | R175: 24.56696269 | S175: 25.18886372 | T175: 26.26828472 | U175: 27.81703463 | V175: 29.87582977 | W175: 32.51394399
A176: 165 | B176: 165 | C176: 206.4039022 | D176: 165.9003431 | E176: 133.2186985 | F176: 107.0260006 | G176: 86.2053084 | H176: 69.81524185 | I176: 57.0595817 | J176: 47.26470598 | K176: 39.86282775 | L176: 34.3792637 | M176: 30.42229338 | N176: 27.67453541 | O176: 25.88513505 | P176: 24.86239269 | Q176: 24.46673762 | R176: 24.60415262 | S176: 25.22028037 | T176: 26.29550217 | U176: 27.84128815 | V176: 29.89809386 | W176: 32.53503629
A177: 166 | B177: 166 | C177: 206.6296079 | D177: 166.1344082 | E177: 133.4543031 | F177: =($AJ$16*(G176+E176)+(1-2*$AJ$16)*F176+$AJ$6*$AC$7)/(1+$AJ$6) -> 107.2565767 | G177: 86.42499601 | H177: 70.01925491 | I177: 57.24444786 | J177: 47.428364 | K177: 40.00458571 | L177: 34.4996392 | M177: 30.52276931 | N177: 27.75727047 | O177: 25.95266803 | P177: 24.91737343 | Q177: 24.51170889 | R177: 24.64139648 | S177: 25.25173323 | T177: 26.32273445 | U177: 27.86553864 | V177: 29.92034526 | W177: 32.55611656
A178: 167 | B178: 167 | C178: 206.8532707 | D178: =($AJ$16*(E177+C177)+(1-2*$AJ$16)*D177+$AJ$6*$AC$7)/(1+$AJ$6) -> 166.3663548 | E178: 133.6878135 | F178: 107.4851764 | G178: 86.64290323 | H178: 70.2217398 | I178: 57.42806902 | J178: 47.59106572 | K178: 40.14565915 | L178: 34.61956778 | M178: 30.62299079 | N178: 27.83989403 | O178: 26.02018436 | P178: 24.97239025 | Q178: 24.5567357 | R178: 24.67869232 | S178: 25.28322164 | T178: 26.34998193 | U178: 27.88978716 | V178: 29.94258536 | W178: 32.57718613
A179: 168 | B179: 168 | C179: 207.074914 | D179: 166.5962071 | E179: 133.9192529 | F179: 107.7118203 | G179: 86.85904674 | H179: 70.42270861 | I179: 57.61045248 | J179: 47.75281402 | K179: 40.28604729 | L179: 34.73904601 | M179: 30.72295279 | N179: 27.92240049 | O179: 26.0876787 | P179: 25.02743868 | Q179: 24.60181481 | R179: 24.71603822 | S179: 25.3147449 | T179: 26.37724496 | U179: 27.91403474 | V179: 29.96481551 | W179: 32.59824627
A180: 169 | B180: 169 | C180: 207.2945606 | D180: 166.8239888 | E180: 134.148644 | F180: 107.9365286 | G180: 87.07344304 | H180: 70.62217333 | I180: 57.79160556 | J180: 47.91361187 | K180: 40.42574951 | L180: 34.85807058 | M180: 30.82265044 | N180: 28.00478438 | O180: 26.15514583 | P180: 25.0825143 | Q180: 24.64694297 | R180: 24.75343223 | S180: 25.3463023 | T180: 26.4045238 | U180: 27.93828234 | V180: 29.98703697 | W180: 32.61929818
A181: 170 | B181: 170 | C181: 207.512233 | D181: 167.0497231 | E181: 134.3760094 | F181: 108.1593214 | G181: 87.28610844 | H181: 70.82014588 | I181: 57.97153559 | J181: 48.07346233 | K181: 40.56476528 | L181: 34.97663838 | M181: 30.92207903 | N181: 28.08704036 | O181: 26.22258062 | P181: 25.13761279 | Q181: 24.692117 | R181: 24.79087243 | S181: 25.37789311 | T181: 26.43181871 | U181: 27.96253087 | V181: 30.00925098 | W181: 32.64034304
A182: 171 | B182: 171 | C182: 207.7279535 | D182: 167.2734333 | E182: 134.6013712 | F182: 108.3802184 | G182: 87.49705907 | H182: 71.01663806 | I182: 58.15024988 | J182: 48.23236853 | K182: 40.7030942 | L182: 35.09474641 | M182: 31.02123397 | N182: 28.16916326 | O182: 26.28997804 | P182: 25.19272987 | Q182: 24.73733372 | R182: 24.82835689 | S182: 25.40951655 | T182: 26.45912987 | U182: 27.9867812 | V182: 30.03145871 | W182: 32.66138194
A183: 172 | B183: 172 | C183: 207.941744 | D183: 167.4951419 | E183: 134.8247513 | F183: 108.599239 | G183: 87.7063109 | H183: 71.21166163 | I183: 58.32775576 | J183: 48.39033364 | K183: 40.84073603 | L183: 35.21239185 | M183: 31.12011086 | N183: 28.25114799 | O183: 26.35733317 | P183: 25.24786134 | Q183: 24.78259002 | R183: 24.86588367 | S183: 25.44117184 | T183: 26.48645746 | U183: 28.01103415 | V183: 30.05366128 | W183: 32.68241595
A184: 173 | B184: 173 | C184: 208.153626 | D184: 167.7148714 | E184: 135.0461711 | F184: 108.8164025 | G184: 87.91387969 | H184: 71.40522822 | I184: 58.50406055 | J184: 48.54736096 | K184: 40.97769059 | L184: 35.32957199 | M184: 31.21870543 | N184: 28.33298963 | O184: 26.42464119 | P184: 25.30300308 | Q184: 24.82788279 | R184: 24.90345084 | S184: 25.47285817 | T184: 26.51380159 | U184: 28.03529046 | V184: 30.07585974 | W184: 32.70344607
A185: 174 | B185: 174 | C185: 208.3636207 | D185: 167.9326437 | E185: 135.2656519 | F185: 109.0317279 | G185: 88.11978107 | H185: 71.5973494 | I185: 58.67917157 | J185: 48.70345379 | K185: 41.11395785 | L185: 35.44628429 | M185: 31.31701352 | N185: 28.41468337 | O185: 26.49189738 | P185: 25.35815102 | Q185: 24.87320898 | R185: 24.94105649 | S185: 25.50457473 | T185: 26.54116234 | U185: 28.05955087 | V185: 30.09805511 | W185: 32.72447326
A186: 175 | B186: 175 | C186: 208.5717491 | D186: 168.1484806 | E186: 135.4832146 | F186: 109.2452339 | G186: 88.32403048 | H186: 71.78803664 | I186: 58.85309613 | J186: 48.85861554 | K186: 41.24953789 | L186: 35.56252631 | M186: 31.41503116 | N186: 28.49622451 | O186: 26.55909711 | P186: 25.41330114 | Q186: 24.91856554 | R186: 24.97869869 | S186: 25.53632065 | T186: 26.56853977 | U186: 28.08381603 | V186: 30.12024835 | W186: 32.74549843
A187: 176 | B187: 176 | C187: 208.7780319 | D187: 168.3624034 | E187: 135.6988799 | F187: 109.456939 | G187: 88.52664318 | H187: 71.97730133 | I187: 59.02584153 | J187: 49.01284965 | K187: 41.38443088 | L187: 35.67829577 | M187: 31.51275447 | N187: 28.57760849 | O187: 26.62623586 | P187: 25.46844953 | Q187: 24.96394949 | R187: 25.01637553 | S187: 25.56809508 | T187: 26.59593388 | U187: 28.10808657 | V187: 30.14244037 | W187: 32.76652246
A188: 177 | B188: 177 | C188: 208.9824893 | D188: 168.5744333 | E188: 135.9126681 | F188: 109.6668614 | G188: 88.72763428 | H188: 72.16515477 | I188: 59.19741506 | J188: 49.16615963 | K188: 41.5186371 | L188: 35.7935905 | M188: 31.61017973 | N188: 28.65883087 | O188: 26.69330919 | P188: 25.52359231 | Q188: 25.00935786 | R188: 25.05408511 | S188: 25.59989712 | T188: 26.62334466 | U188: 28.13236307 | V188: 30.16463205 | W188: 32.78754615
A189: 178 | B189: 178 | C189: 209.1851413 | D189: 168.784591 | E189: 136.1245993 | F189: 109.8750192 | G189: 88.92701872 | H189: 72.35160819 | I189: 59.36782402 | J189: 49.31854905 | K189: 41.65215693 | L189: 35.90840847 | M189: 31.70730334 | N189: 28.73988731 | O189: 26.76031277 | P189: 25.57872567 | Q189: 25.05478773 | R189: 25.09182551 | S189: 25.6317259 | T189: 26.65077205 | U189: 28.15664607 | V189: 30.18682418 | W189: 32.80857028
A190: 179 | B190: 179 | C190: 209.3860078 | D190: 168.992897 | E190: 136.3346933 | F190: 110.0814302 | G190: 89.12481128 | H190: 72.5366727 | I190: 59.53707568 | J190: 49.47002151 | K190: 41.78499084 | L190: 36.02274776 | M190: 31.80412182 | N190: 28.82077361 | O190: 26.82724234 | P190: 25.63384589 | Q190: 25.1002362 | R190: 25.12959485 | S190: 25.66358047 | T190: 26.67821595 | U190: 28.18093604 | V190: 30.20901756 | W190: 32.82959558
A191: 180 | B191: 180 | C191: 209.5851082 | D191: 169.1993714 | E191: 136.5429695 | F191: 110.2861119 | G191: 89.32102658 | H191: 72.72035936 | I191: 59.70517729 | J191: 49.62058068 | K191: 41.91713941 | L191: 36.13660656 | M191: 31.90063183 | N191: 28.90148567 | O191: 26.89409377 | P191: 25.68894927 | Q191: 25.14570042 | R191: 25.16739124 | S191: 25.69545993 | T191: 26.70567626 | U191: 28.20523345 | V191: 30.23121289 | W191: 32.85062274
A192: 181 | B192: 181 | C192: 209.7824616 | D192: 169.4040343 | E192: 136.7494472 | F192: 110.4890817 | G192: 89.51567909 | H192: 72.90267912 | I192: 59.8721361 | J192: 49.77023025 | K192: 42.04860329 | L192: 36.2499832 | M192: 31.99683013 | N192: 28.9820195 | O192: 26.96086298 | P192: 25.74403221 | Q192: 25.19117757 | R192: 25.20521281 | S192: 25.72736332 | T192: 26.73315281 | U192: 28.22953871 | V192: 30.25341086 | W192: 32.8716524
A193: 182 | B193: 182 | C193: 209.9780871 | D193: 169.6069052 | E193: 136.9541454 | F193: 110.6903567 | G193: 89.70878309 | H193: 73.08364286 | I193: 60.03795934 | J193: 49.91897399 | K193: 42.17938323 | L193: 36.3628761 | M193: 32.09271361 | N193: 29.06237122 | O193: 27.027546 | P193: 25.79909116 | Q193: 25.23666485 | R193: 25.24305767 | S193: 25.75928968 | T193: 26.76064544 | U193: 28.25385218 | V193: 30.27561211 | W193: 32.89268516
A194: 183 | B194: 183 | C194: 210.1720033 | D194: 169.8080034 | E194: 137.1570829 | F194: 110.8899538 | G194: 89.90035276 | H194: 73.26326137 | I194: 60.20265422 | J194: 50.06681568 | K194: 42.30948006 | L194: 36.47528379 | M194: 32.18827928 | N194: 29.14253705 | O194: 27.09413894 | P194: 25.85412264 | Q194: 25.28215952 | R194: 25.28092398 | S194: 25.79123806 | T194: 26.78815393 | U194: 28.2781742 | V194: 30.29781724 | W194: 32.9137216
A195: 184 | B195: 184 | C195: 210.3642285 | D195: 170.0073481 | E195: 137.3582781 | F195: 111.0878898 | G195: 90.09040208 | H195: 73.44154534 | I195: 60.36622794 | J195: 50.21375916 | K195: 42.4388947 | L195: 36.58720492 | M195: 32.28352426 | N195: 29.22251334 | O195: 27.16063802 | P195: 25.90912321 | Q195: 25.32765886 | R195: 25.31880988 | S195: 25.82320746 | T195: 26.81567805 | U195: 28.30250506 | V195: 30.3200268 | W195: 32.93476223
A196: 185 | B196: 185 | C196: 210.5547809 | D196: 170.2049579 | E196: 137.5577492 | F196: 111.284181 | G196: 90.2789449 | H196: 73.6185054 | I196: 60.52868767 | J196: 50.35980828 | K196: 42.56762812 | L196: 36.69863824 | M196: 32.37844577 | N196: 29.30229652 | O196: 27.2270395 | P196: 25.96408951 | Q196: 25.37316017 | R196: 25.35671352 | S196: 25.8551969 | T196: 26.84321753 | U196: 28.32684502 | V196: 30.34224131 | W196: 32.95580756
A197: 186 | B197: 186 | C197: 210.7436784 | D197: 170.4008516 | E197: 137.7555142 | F197: 111.4788439 | G197: 90.46599493 | H197: 73.79415209 | I197: 60.69004056 | J197: 50.50496696 | K197: 42.69568141 | L197: 36.80958258 | M197: 32.47304116 | N197: 29.38188312 | O197: 27.29333977 | P197: 26.01901824 | Q197: 25.41866082 | R197: 25.39463309 | S197: 25.88720537 | T197: 26.8707721 | U197: 28.35119431 | V197: 30.36446123 | W197: 32.97685801
A198: 187 | B198: 187 | C198: 210.9309385 | D198: 170.5950474 | E198: 137.9515908 | F198: 111.6718944 | G198: 90.65156571 | H198: 73.96849585 | I198: 60.85029375 | J198: 50.64923913 | K198: 42.82305569 | L198: 36.9200369 | M198: 32.56730785 | N198: 29.46126979 | O198: 27.35953528 | P198: 26.07390615 | Q198: 25.4641582 | R198: 25.43256676 | S198: 25.91923186 | T198: 26.89834144 | U198: 28.37555311 | V198: 30.38668702 | W198: 32.99791402
A199: 188 | B199: 188 | C199: 211.1165789 | D199: 170.7875633 | E199: 138.1459967 | F199: 111.8633485 | G199: 90.83567065 | H199: 74.14154705 | I199: 61.00945435 | J199: 50.79262875 | K199: 42.94975218 | L199: 37.03000022 | M199: 32.66124341 | N199: 29.54045326 | O199: 27.42562255 | P199: 26.12875006 | Q199: 25.50964971 | R199: 25.47051272 | S199: 25.95127536 | T199: 26.9259252 | U199: 28.39992158 | V199: 30.40891906 | W199: 33.01897595
A200: 189 | B200: 189 | C200: 211.3006164 | D200: 170.978417 | E200: 138.3387489 | F200: 112.0532219 | G200: 91.01832302 | H200: 74.31331599 | I200: 61.16752944 | J200: 50.93513982 | K200: 43.07577216 | L200: 37.13947169 | M200: 32.75484547 | N200: 29.61943036 | O200: 27.49159822 | P200: 26.18354685 | Q200: 25.55513283 | R200: 25.50846918 | S200: 25.98333483 | T200: 26.95352304 | U200: 28.42429985 | V200: 30.43115772 | W200: 33.04004416
... 835 more rows

Sheet elaborazione codice
B1: SIMULAZIONE VALVOLA CON CODICE | F1: (per entrare nel codice ALT-F11 per eseguire il codice F5)
A2: 1 | B2: 2 | C2: 3 | D2: 4 | E2: 5 | F2: 6 | G2: 7 | H2: 8 | I2: 9 | J2: 10 | K2: 11 | L2: 12 | M2: 13 | N2: 14 | O2: 15 | P2: 16 | Q2: 17 | R2: 18 | S2: 19 | T2: 20 | U2: 21 | V2: 22
B3: lvalv | C3: dvalv | D3: nx | E3: nt | F3: tau | G3: ro | H3: Kter | I3: csp | J3: gammam | K3: gammac | L3: gammaa | M3: T0 | N3: Tm | O3: Ta | P3: Tc
B4: lunghezza valvola (m) | C4: diametro valvola (m) | D4: numero intervalli x | E4: numero intervalli t | F4: durata tempo (s) | G4: densità (kg/m^3) | H4: conduttività termica ( ) | I4: calore specifico (J/(kg°K)) | J4: coeff. scambio con gas motore W/(s*m^2) | K4: coeff. scambio con olio carter W/(s*m^2) | L4: coeff. scambio con alimentazione W/(s*m^2) | M4: temperatura iniziale valvola (°C) | N4: temperatura gas motore (°C) | O4: temperatura alimentazione (°C) | P4: temperatura olio carter (°C)
B5: 0.1 | C5: ='[1]valvola alimentazione GHOST '!T7 -> 0.009 | D5: 75 | E5: 10240 | F5: 1024 | G5: ='[1]valvola alimentazione GHOST '!T9 -> 8100 | H5: ='[1]valvola alimentazione GHOST '!T10 -> 13.5 | I5: ='[1]valvola alimentazione GHOST '!T11 -> 515 | J5: 100 | K5: 150 | L5: 50 | M5: 20 | N5: 1300 | O5: 20 | P5: 80 | Q5: deltax | R5: deltat | S5: diffus | T5: G | U5: A | V5: B | W5: tetac | X5: tetam
